Cogmind - Beta 15 @@@ ROGUE MODE // 2025.05.24 @ 18:06:53 // Winter2019/RPGLIKE Player: ASS BUSTER Result: Destroyed 0b10! Performance ------------- Evolutions (9) 4500 Regions Visited (30) 6000 Robots Destroyed (1070) 5350 Value Destroyed (72966) 72966 Prototype IDs (370) 7400 Alien Tech Used (12) 2400 Bonus (111783) 111783 TOTAL SCORE: 210399 Bonus ------- Triggered High Security 1500 High Alert Combat Kills 39882 Follower Combat Kills 1412 Network Hubs Disabled 400 Registered with UFD 300 Met Optimus in HQ 500 Met Data Miner 300 Met Zhirov 300 Built Enhanced Grunts 300 Found Hidden Lab 3000 Used Core Reset Matrix 3000 Scanned by Researcher 500 Pursued by Intercept 2000 Met Sigix 2000 Destroyed Superfortress 15000 Escaped with Sigix 5000 Destroyed MAIN.C Guards 500 Met MAIN.C 5000 Destroyed MAIN.C Shell 5000 Destroyed MAIN.C 10000 Met Architect 300 Started Test 138-B 500 Destroyed A8 300 Destroyed A6 400 Destroyed A4 700 Destroyed A3 800 Destroyed A2 1000 Destroyed Architect 15000 Win 3000 Friendly Fire -6111 Cogmind --------- Core Integrity 3053/16000 Matter 13/1600 Energy 763/920 System Corruption 1% Temperature Cool (3) Movement Flying (25) Location Tau Ceti IV Orbit Parts ------- > --- POWER (1) -------- Concept Zero-point Core > --- PROPULSION (1) --- Experimental Surge Thruster > --- UTILITY (12) ----- Experimental Active Sensor Suite Experimental Core Analyzer Concept Recoil Nullifier Experimental Kinecellerator Experimental Weapon Cycler Experimental ECM Suite Improved Reaction Control System Advanced Reaction Control System Concept Cloak Mesh Experimental Thermal Shield > --- WEAPON (12) ------ Compact HERF Cannon Compact HERF Cannon Concept Plasma Driver Cooled Directed Potential Cannon Graviton Cannon Concept Helical Railcannon Concept Helical Railcannon Concept Heavy Railcannon > --- INVENTORY (8) ---- Cooled Q-thruster Advanced Coolant Injector Experimental Remote Shield High-powered Transdimensional Reconstructor Concept XC Strikerail Sigix Containment Pod Peak State ------------ > --- POWER ------------ Concept Zero-point Core > --- PROPULSION ------- Experimental Surge Thruster > --- UTILITY ---------- Advanced Signal Interpreter Experimental Active Sensor Suite Concept Countertargeting System Experimental Core Analyzer Experimental Armor Integrity Analyzer Concept Recoil Nullifier Advanced Particle Charger Experimental Kinecellerator Experimental Weapon Cycler Concept Cloak Mesh Crosscalibrator > --- WEAPON ----------- Concept Plasma Driver Cooled Directed Potential Cannon Cooled Directed Potential Cannon Concept XC Strikerail Concept XC Strikerail Concept Miniperforator Concept Helical Railcannon Concept Rapid Grenade Launcher > --- INVENTORY -------- Experimental Remote Shield Transdimensional Reconstructor Transdimensional Reconstructor Concept Helical Railcannon Concept Heavy Railcannon Sigix Containment Pod [Rating: 301] Favorites ----------- Power Ion Engine Engine Ion Engine Power Core Fission Core Reactor Particle Reactor Propulsion Cesium-ion Thruster Wheel Subdweller Monowheel Flight Unit Cesium-ion Thruster Utility Improved Target Analyzer Device Focal Shield Storage Medium Matter Pod Processor Improved Target Analyzer Hackware Quantum Router Protection Improved Light Armor Plating Artifact LC Capacitor Weapon Flamer Energy Gun Quantum Rifle Energy Cannon Compact HERF Cannon Ballistic Gun KE Penetrator Ballistic Cannon Gauss Cannon Launcher Concept Rapid Grenade Launcher Special Weapon Flamer Impact Weapon Core Stripper Slashing Weapon Sigix Broadsword Build | -11 -10 -10 -8 -8 -6 -6 -6 -6 -6 -6 -5 -5 -5 -5 -5 -5 -4 -4 -4 -4 -3 -3 -3 -3 -2 -2 -2 -1 -1 -1 ------- Run | Yrd Mat Sub Rec Scr Fac Was Fac Low Low Dat Pro Fac Ext Cet Arc Hub Fac Upp Upp Zhi Pro Res Arm Lab Res Qua Frg Acc Com Ac0 Slots Evolved 22 | 22 . . . . . . . . . . . . . . . . . . . . . . . . . . . . . . Power . | . . . . . . . . . . . . . . . . . . . . . . . . . . . . . . . Propulsion . | . . . . . . . . . . . . . . . . . . . . . . . . . . . . . . . Utility 11 | 11 . . . . . . . . . . . . . . . . . . . . . . . . . . . . . . Weapon 11 | 11 . . . . . . . . . . . . . . . . . . . . . . . . . . . . . . Parts Attached 271 | 5 . 16 9 7 10 . 10 2 . . . 6 1 2 . 1 48 2 3 2 1 20 21 6 7 9 70 1 7 5 Power 13 | 1 . . . . . . 1 . . . . . . 1 . . 2 . . 1 . 1 2 . 1 . 3 . . . Engine 2 | 1 . . . . . . . . . . . . . . . . . . . . . 1 . . . . . . . . Core 2 | . . . . . . . 1 . . . . . . . . . . . . . . . . . . . 1 . . . Reactor 9 | . . . . . . . . . . . . . . 1 . . 2 . . 1 . . 2 . 1 . 2 . . . Propulsion 9 | 1 . 1 . 1 . . . . . . . . . . . . . . . . . 1 . . 1 . 3 . . 1 Treads . | . . . . . . . . . . . . . . . . . . . . . . . . . . . . . . . Leg . | . . . . . . . . . . . . . . . . . . . . . . . . . . . . . . . Wheel 2 | 1 . 1 . . . . . . . . . . . . . . . . . . . . . . . . . . . . Hover . | . . . . . . . . . . . . . . . . . . . . . . . . . . . . . . . Flight 7 | . . . . 1 . . . . . . . . . . . . . . . . . 1 . . 1 . 3 . . 1 Utility 118 | . . 3 9 4 5 . 5 2 . . . . . . . . 14 2 3 1 . 8 7 3 1 4 40 1 4 2 Device 70 | . . 1 1 2 2 . 3 1 . . . . . . . . 8 2 2 . . 5 6 . 1 3 27 1 3 2 Storage 4 | . . 1 . . . . . . . . . . . . . . . . . . . . . . . . 3 . . . Processor 17 | . . . . 1 2 . . . . . . . . . . . 3 . 1 . . 1 . . . . 8 . 1 . Hackware 1 | . . . . . . . . . . . . . . . . . . . . . . . . 1 . . . . . . Protection 25 | . . 1 8 1 1 . 2 1 . . . . . . . . 3 . . 1 . 2 1 1 . 1 2 . . . Artifact 1 | . . . . . . . . . . . . . . . . . . . . . . . . 1 . . . . . . Weapon 131 | 3 . 12 . 2 5 . 4 . . . . 6 1 1 . 1 32 . . . 1 10 12 3 4 5 24 . 3 2 Energy Gun 31 | 2 . 2 . . 1 . . . . . . . . . . . 14 . . . . 1 4 2 1 . 4 . . . Energy Cannon 25 | . . 1 . . . . 2 . . . . . . . . . 4 . . . . 1 2 . 1 3 9 . 2 . Ballistic Gun 24 | 1 . 5 . . . . . . . . . 2 1 1 . . 6 . . . . 3 2 . . . 3 . . . Ballistic Cannon 39 | . . . . 2 4 . 2 . . . . 4 . . . 1 7 . . . 1 5 4 . 2 1 5 . 1 . Launcher 4 | . . . . . . . . . . . . . . . . . . . . . . . . . . . 2 . . 2 Special Weapon 6 | . . 4 . . . . . . . . . . . . . . 1 . . . . . . 1 . . . . . . Impact Weapon 1 | . . . . . . . . . . . . . . . . . . . . . . . . . . 1 . . . . Slashing Weapon 1 | . . . . . . . . . . . . . . . . . . . . . . . . . . . 1 . . . Piercing Weapon . | . . . . . . . . . . . . . . . . . . . . . . . . . . . . . . . Special Melee Weapon . | . . . . . . . . . . . . . . . . . . . . . . . . . . . . . . . Unidentified Prototypes 41 | . . . . . . . 3 1 . . . . . 1 . . 3 . . 4 . 1 1 7 . 4 16 . . . Corrupted Parts 2 | . . . . . . . . . . . . . . 1 . . 1 . . . . . . . . . . . . . System Corruption 11 | . . . . . . . . . . . . . . 9 . . 2 . . . . . . . . . . . . . Parts Lost 28 | . . . . . . . . . . . . . . . . 12 . . . . 2 . . . . . 12 . 1 1 Power 1 | . . . . . . . . . . . . . . . . . . . . . . . . . . . 1 . . . Propulsion . | . . . . . . . . . . . . . . . . . . . . . . . . . . . . . . . Utility 14 | . . . . . . . . . . . . . . . . 6 . . . . 1 . . . . . 6 . . 1 Weapon 13 | . . . . . . . . . . . . . . . . 6 . . . . 1 . . . . . 5 . 1 . Highest Loss Streak 6 | . . . . . . . . . . . . . . . . 6 . . . . 2 . . . . . 2 . 1 1 To Critical Strikes 5 | . . . . . . . . . . . . . . . . 1 . . . . . . . . . . 4 . . . Average Backups 1 | . . . . . . . . . . . . . . . . . . . . . . . . . 5 3 4 2 3 3 Power . | . . . . . . . . . . . . . . . . . . . . . . . . . . . . . . . Propulsion . | . . . . . . . . . . . . . . . . . . . . . . . . . . . . . . . Utility . | . . . . . . . . . . . . . . . . . . . . . . . . . . . 1 . 1 2 Weapon . | . . . . . . . . . . . . . . . . . . . . . . . . . 1 2 1 . . . Tool/Special . | . . . . . . . . . . . . . . . . . . . . . . . . . . . . . . . Unused Backups 4 | . . . . . . . . . . . . . . . . . . . . . . . . . . 1 2 . . 1 Power . | . . . . . . . . . . . . . . . . . . . . . . . . . . . . . . . Propulsion . | . . . . . . . . . . . . . . . . . . . . . . . . . . . . . . . Utility . | . . . . . . . . . . . . . . . . . . . . . . . . . . . . . . . Weapon 2 | . . . . . . . . . . . . . . . . . . . . . . . . . . . 2 . . . Tool/Special 2 | . . . . . . . . . . . . . . . . . . . . . . . . . . 1 . . . 1 Average Slot Usage (%) 80 | . 15 49 91 94 94 92 88 88 88 88 86 86 88 88 88 73 67 77 82 84 80 87 91 91 91 85 79 75 80 81 Reactor 1 | . . . . . . . . . . . . . . 2 3 2 2 3 3 3 3 3 2 3 2 3 1 . . . Flight 1 | . . . . 1 3 3 3 3 3 3 3 3 3 3 3 . . . . . . 2 3 3 3 3 2 3 3 3 Device 16 | . . 1 4 6 13 15 14 15 15 15 15 15 15 15 15 12 11 16 19 19 19 19 25 26 25 24 20 30 33 34 Processor 6 | . . . . 2 5 7 7 7 7 7 7 7 7 7 7 6 6 7 9 11 11 11 9 7 7 6 8 10 7 5 Protection 6 | . . . 27 26 20 15 11 11 11 11 11 11 11 11 11 8 2 3 3 3 1 2 3 1 . . 1 . . . Energy Gun 7 | . 7 11 11 8 5 . . . . . . . . . . . 14 15 15 15 13 11 10 15 18 14 6 . . . Energy Cannon 7 | . . . 3 3 2 . 1 3 3 3 3 3 3 3 3 2 9 11 11 11 10 11 9 4 3 7 13 7 13 15 Ballistic Gun 5 | . 3 15 15 13 8 . . . . . . 5 7 7 7 5 5 7 7 7 7 7 7 4 3 . 3 2 3 1 Ballistic Cannon 13 | . . . . 2 12 30 27 26 26 26 26 26 26 26 26 23 9 11 11 11 11 14 15 15 15 14 11 11 12 15 Special Weapon 4 | . . 7 15 15 15 15 15 15 15 15 13 7 7 7 7 5 . . . . . . . 2 2 2 . . . . Peak Build Rating 301 | 5 4 33 56 70 93 93 112 114 114 114 114 130 130 136 136 138 141 142 148 152 145 171 187 227 229 247 301 270 283 280 Average Rating 151 | 3 4 21 53 63 79 93 103 113 114 114 113 122 130 135 136 115 117 137 144 145 138 155 173 206 225 239 250 268 273 272 On Entrance 128 | . 4 4 33 56 70 93 93 112 114 114 114 112 130 130 136 136 5 130 142 146 145 130 162 187 219 229 247 270 267 267 Naked Turns . | . . . . . . . . . . . . . . . . . . . . . . . . . . . . . . . Heaviest Build 190 | 9 9 64 92 91 108 108 137 138 138 138 138 155 155 166 166 168 130 137 138 139 141 166 181 177 170 190 190 147 168 183 Greatest Support 1608 | 170 163 180 180 180 165 165 165 165 165 165 165 165 165 165 165 165 163 163 163 163 163 167 1607 1607 1608 1608 1608 1605 1605 1605 Greatest Overweight (x) 1 | . . . . . . . . . . . . . . 1 1 1 . . . . . . 1 . . . . . . . Average Overweight (x) . | . . . . . . . . . . . . . . . 1 . . . . . . . . . . . . . . . Largest Inventory Capacity 8 | . . . . . . . . . . . . . . . . . . . . . . . . 8 8 8 8 8 8 8 Average Capacity 2 | . . . . . . . . . . . . . . . . . . . . . . . . 3 8 8 8 8 8 8 Most Carried 8 | . . . . . . . . . . . . . . . . . . . . . . . . 2 8 8 8 4 6 8 Average Carried 1 | . . . . . . . . . . . . . . . . . . . . . . . . . 5 7 7 4 5 5 Final Capacity 8 | . . . . . . . . . . . . . . . . . . . . . . . . 8 8 8 8 8 8 8 Final Carried 8 | . . . . . . . . . . . . . . . . . . . . . . . . 2 6 8 4 4 5 7 Class Distribution -------------------- 60% | Wizard-Scout 38% | Wizard-Executioner Dominant Class ---------------- Wizard-Gunner | -10/Materials Wizard-Executioner | -10/Subcaves Wizard-Executioner | -8/Recycling Wizard-Executioner | -8/Scraptown Wizard-Scout | -6/Factory Wizard-Scout | -6/Waste Wizard-Scout | -6/Factory Wizard-Scout | -6/Lower Caves Wizard-Scout | -6/Lower Caves Wizard-Scout | -6/Data Miner Wizard-Scout | -5/Proximity Caves Wizard-Scout | -5/Factory Wizard-Scout | -5/Extension Wizard-Executioner | -5/Cetus Wizard-Executioner | -5/Archives Wizard-Executioner | -5/Hub_04(d) Wizard-Executioner | -4/Factory Wizard-Executioner | -4/Upper Caves Wizard-Scout | -4/Upper Caves Wizard-Scout | -4/Zhirov Wizard-Scout | -3/Proximity Caves Wizard-Scout | -3/Research Wizard-Scout | -3/Armory Wizard-Scout | -3/Lab Wizard-Scout | -2/Research Wizard-Scout | -2/Quarantine Wizard-Scout | -2/Protoforge Wizard-Scout | -1/Access Wizard-Scout | -1/Command Wizard-Scout | -1/Access_0 Resources | -11 -10 -10 -8 -8 -6 -6 -6 -6 -6 -6 -5 -5 -5 -5 -5 -5 -4 -4 -4 -4 -3 -3 -3 -3 -2 -2 -2 -1 -1 -1 ----------- Run | Yrd Mat Sub Rec Scr Fac Was Fac Low Low Dat Pro Fac Ext Cet Arc Hub Fac Upp Upp Zhi Pro Res Arm Lab Res Qua Frg Acc Com Ac0 Matter Collected 43633 | 153 . 447 559 214 484 158 1369 1059 512 238 759 1502 1416 346 595 2426 5828 751 146 . 627 966 1575 49 1653 619 12511 557 2001 4113 Remotely 1320 | . . . . . . . . . . . . . . . . . . . . . . . . . . . 1320 . . . Salvage Created 49065 | 90 . 331 330 . 649 186 1245 632 459 122 595 1113 853 42 86 2322 8570 1197 190 . 590 1856 2107 . 2022 1195 17139 650 2476 2018 Parts 1950 | 2 . 33 17 . 28 . 50 22 15 . 11 37 28 3 . 96 287 46 13 . 27 83 139 . 89 50 683 33 59 99 Haulers Intercepted 14 | . . . . . 1 . 2 . . . . 3 . . . 2 3 . . . . 2 . . 1 . . . . . Recyclers Shooed 7 | 1 . . . . 1 . . . . . . 4 . . . 1 . . . . . . . . . . . . . . Parts Field Recycled . | . . . . . . . . . . . . . . . . . . . . . . . . . . . . . . . Retrieved Matter . | . . . . . . . . . . . . . . . . . . . . . . . . . . . . . . . Parts Self-Destructed 113 | . . 16 . . . . . 19 10 . 9 . . . . . . 29 7 . 23 . . . . . . . . . Prevented 22 | . . . . . . . . . . . . . . . . . . 15 3 . 4 . . . . . . . . . Kills | -11 -10 -10 -8 -8 -6 -6 -6 -6 -6 -6 -5 -5 -5 -5 -5 -5 -4 -4 -4 -4 -3 -3 -3 -3 -2 -2 -2 -1 -1 -1 ------- Run | Yrd Mat Sub Rec Scr Fac Was Fac Low Low Dat Pro Fac Ext Cet Arc Hub Fac Upp Upp Zhi Pro Res Arm Lab Res Qua Frg Acc Com Ac0 Combat Hostiles Destroyed 889 | . . 17 3 . 13 4 29 18 5 4 15 27 22 3 2 38 137 27 5 . 18 25 55 1 29 24 294 21 15 38 Melee 5 | . . . . . . . . . . . . . . . . . . . . . . . . . . . 5 . . . Guns 205 | . . 12 2 . 2 . . . . . . 3 6 1 . 8 61 9 3 . 7 11 19 . 11 6 38 3 . 3 Cannons 528 | . . 3 1 . 11 4 18 18 5 4 14 19 15 2 2 28 61 16 2 . 8 14 30 1 16 15 180 5 13 23 AOE 88 | . . . . . . . 2 . . . . 4 . . . . 4 . . . . . 1 . 2 1 56 12 . 6 Classes Destroyed 40 | 2 . 8 1 . 5 1 3 4 1 . 1 . . . . 2 3 . . . . . 2 . . 2 5 . . . Worker 21 | . . . . . . . 3 . . . . 3 . . . 6 4 . . . . 3 . . 1 . 1 . . . Builder 27 | . . . 1 . . . 3 . . . . 2 2 . . 4 7 . . . . . . . 1 1 4 2 . . Tunneler 3 | 1 . . . . 1 . 1 . . . . . . . . . . . . . . . . . . . . . . . Hauler 14 | . . . . . 1 . 2 . . . . 3 . . . 2 3 . . . . 2 . . 1 . . . . . Recycler 20 | 1 . . 3 . 1 . 2 . . . . 1 . . . 5 4 . . . . 2 . . 1 . . . . . Carrier 20 | . . . . . . . . . . . . . . . . . 4 . . . . . . . . . 16 . . . Mechanic 12 | . . . . . . . . . . . . . . . . . 4 . . . . . . . . . 8 . . . Operator 10 | . . . . . 1 . 2 . . . . . 1 . . . . . . . . . 1 . . . 4 . 1 . Drone 6 | . . . . . . . . . . . 2 . . . . . . . . . . . . . . . 4 . . . Turret 1 | . . 1 . . . . . . . . . . . . . . . . . . . . . . . . . . . . Watcher 28 | . . . . . 1 . 2 . . . . 3 2 . . 2 5 . . . . 1 1 . 1 2 5 . 3 . Swarmer 100 | . . 6 . . 5 . 9 1 3 . 1 8 . . . 6 . 12 . . 9 7 18 . . 8 7 . . . Cutter 9 | . . . . . . . . . . . . . . . . 5 . . . . . . 4 . . . . . . . Saboteur 17 | . . . . . . . . . . . . . . . . . 6 . . . . . 2 . . . 9 . . . Grunt 203 | . . 1 . . 2 . 13 10 . . 2 10 10 . . 5 47 7 . . 7 2 3 . 8 4 59 9 4 . Brawler 39 | . . . . . . . . 4 . . 2 . . . . 1 12 3 . . . . 2 . 1 . 14 . . . Duelist 36 | . . . . . . . 1 . . . 2 . . . . 2 15 3 . . . . 3 . . . 10 . . . Protector 20 | . . . . . . . . . . . . . . . . 4 8 . . . . . . . . 1 7 . . . Researcher 7 | . . . . . . . . . . . . . . . . . . . . . . . . . . 1 6 . . . Sentry 85 | . . 1 3 . 3 . 4 2 . . 3 4 3 . 2 3 13 2 . . 2 4 8 . 2 1 21 2 2 . Demolisher 2 | . . . . . . . . . . . . . . . . . . . . . . . 1 . . . . . 1 . Specialist 19 | . . . . . . . . . . . . . . . . . . . . . . . 5 . . . 14 . . . Hunter 70 | . . . . . . . . . 2 . 2 3 1 . . 6 18 . 4 . . 8 4 . 4 . 15 3 . . Programmer 76 | . . . . . 2 . 1 1 . . . 2 1 . . . 17 . 1 . . 3 4 . 7 2 29 5 1 . Heavy 3 | . . . . . 1 . . . . . . . . . . . . . . . . . 1 . . . . . 1 . Q-Series 1 | . . . . . . . . . . . . . . . . . . . . . . . . . . . 1 . . . Behemoth 12 | . . . . . . . 1 . . . 1 . 2 . . . 1 . . . . 1 . . 3 . 1 2 . . Compactor 4 | . . . . . . 4 . . . . . . . . . . . . . . . . . . . . . . . . Cetus Guard 3 | . . . . . . . . . . . . . . 3 . . . . . . . . . . . . . . . . M Guard 2 | . . . . . . . . . . . . . . . . . . . . . . . . . . . . . 2 . Enhanced Grunt 29 | . . . . . . . . . . 4 . . . . . 4 . . . . . . . . . . . . . 21 Enhanced Sentry 3 | . . . . . . . . . . . . . . . . . . . . . . . . . . . . . . 3 Enhanced Hunter 8 | . . . . . . . . . . . . . . . . . . . . . . . . . . . . . . 8 Lightning 9 | . . . . . . . . . . . . . . . . 6 . . . . . . . . . 3 . . . . Hotshot 13 | . . . . . . . . . . . . . . . . . . . . . . . . . . . 13 . . . Decapitator 13 | . . . . . . . . . . . . . . . . . . . . . . . . . . . 13 . . . Immortal 8 | . . . . . . . . . . . . . . . . . . . . . . . . . . . 8 . . . Overlord 1 | . . . . . . . . . . . . . . . . . . . . . . . . . . . 1 . . . Tracker 26 | . . . . . . . . . . . . . . . . . . . . . . . . . 2 2 22 . . . Combat Programmer 26 | . . . . . . . . . . . . . . . . . . . . . . . . . 2 2 20 . 2 . Investigator 1 | . . . . . . . . . . . . . . . . . . . . . . . . . . . 1 . . . Striker 8 | . . . . . . . . . . . . . . . . . . . . . . . . . . . 8 . . . Executioner 4 | . . . . . . . . . . . . . . . . . . . . . . . . . . . 4 . . . Alpha 7 4 | . . . . . . . . . . . . . . . . . . . . . . . . . . . 4 . . . Fortress 1 | . . . . . . . . . . . . . . . . . . . . . . . . . . 1 . . . . V-Series 9 | . . . . . . . . . . . . . . . . . . . . . . . . . . . 9 . . . Artisan 1 | . . 1 . . . . . . . . . . . . . . . . . . . . . . . . . . . . Cobbler 2 | . . 2 . . . . . . . . . . . . . . . . . . . . . . . . . . . . Subdweller 9 | . . 9 . . . . . . . . . . . . . . . . . . . . . . . . . . . . Zionite 2 | . . 2 . . . . . . . . . . . . . . . . . . . . . . . . . . . . Samaritan 2 | . . . . . . . . 2 . . . . . . . . . . . . . . . . . . . . . . Tinkerer 1 | . . . . . . . . 1 . . . . . . . . . . . . . . . . . . . . . . Thug 5 | . . . . . . . . . 1 . 1 . 3 . . . . . . . . . . . . . . . . . Savage 2 | . . . . . . . . . 2 . . . . . . . . . . . . . . . . . . . . . Butcher 3 | . . . . . . . . . 1 . . . 2 . . . . . . . . . . . . . . . . . Guerrilla 2 | . . . . . . . . . . . . . 1 . . 1 . . . . . . . . . . . . . . Mutant 3 | . . . . . . . . 1 1 . . . . . . . . 1 . . . . . . . . . . . . Best Kill Streak 44 | 2 . 3 3 . 6 2 9 8 3 4 9 13 7 4 2 18 22 9 3 . 7 13 9 1 7 9 44 12 6 6 Combat Bots Only 37 | . . 3 1 . 4 2 5 8 3 4 9 9 7 4 2 18 19 9 3 . 7 10 9 1 7 6 37 11 5 6 Max Kills in Single Turn 13 | 1 . 2 2 . 2 1 4 2 2 1 2 4 2 1 1 6 4 2 1 . 2 3 3 1 2 2 13 5 2 3 Gunslinging 1 | . . 1 . . . . . . . . . . . . . . . . . . . . . . . . . . . . Exploded 8 | . . . . . . . 2 . . . . 4 . . . . 3 . . . . . 1 . 1 1 8 5 . 2 Melee 1 | . . . . . . . . . . . . . . . . . . . . . . . . . . . 1 . . . Uniques/NPCs Destroyed 11 | . . . . . . . . . . . . . . 1 . . . . . . . . . 1 . . 1 . 2 6 A7 (-5/Cetus) A5 (-3/Lab) Superfortress (-2/Protoforge) MAIN.C Shell (-1/Command) MAIN.C (-1/Command) A8 (-1/Access_0) A6 (-1/Access_0) A2 (-1/Access_0) A4 (-1/Access_0) A3 (-1/Access_0) Architect (-1/Access_0) Combat | -11 -10 -10 -8 -8 -6 -6 -6 -6 -6 -6 -5 -5 -5 -5 -5 -5 -4 -4 -4 -4 -3 -3 -3 -3 -2 -2 -2 -1 -1 -1 -------- Run | Yrd Mat Sub Rec Scr Fac Was Fac Low Low Dat Pro Fac Ext Cet Arc Hub Fac Upp Upp Zhi Pro Res Arm Lab Res Qua Frg Acc Com Ac0 Hostile Shots Fired 5195 | . . 138 4 . 24 . 218 80 31 17 55 162 102 2 6 682 411 53 20 . 54 109 331 9 137 201 1618 110 56 565 Missed 2372 | . . 44 . . 10 . 87 39 13 7 22 66 44 1 1 191 191 27 8 . 23 68 211 7 72 89 705 49 35 362 Hits 2823 | . . 94 4 . 14 . 131 41 18 10 33 96 58 1 5 491 220 26 12 . 31 41 120 2 65 112 913 61 21 203 Melee 86 | . . . . . . . . 3 . . 7 . . . . 27 3 . . . . . 7 . . . 39 . . . Projectile 2737 | . . 94 4 . 14 . 131 38 18 10 26 96 58 1 5 464 217 26 12 . 31 41 113 2 65 112 874 61 21 203 AOE 13 | . . . . . . . . . . . . . . . . . . . . . . . 2 . . . 8 1 2 . Critical Strikes 210 | . . 2 . . 1 . 4 1 . . 4 3 4 1 . 42 15 . . . . 3 2 . 6 3 105 5 1 8 Part Disruptions 16 | . . . . . 1 . . . . 1 . . . . . . . 1 . . . 1 . . . . 8 . 1 3 Damage Taken 48066 | . . 1015 47 . 268 . 1359 453 415 185 300 653 487 18 48 9973 3841 346 129 . 361 475 884 26 777 1469 19181 917 733 3706 Core 35421 | . . 760 25 . 142 . 847 254 275 129 185 339 239 7 31 7525 2635 223 90 . 252 321 600 15 602 1152 14467 718 578 3010 Absorbed by Shields 10332 | . . . . . 94 . 443 246 264 186 316 682 515 20 51 391 . 38 48 . 130 249 828 26 752 989 1211 278 200 2375 Redirected to Core 30665 | . . 671 11 . 142 . 789 254 255 129 173 332 239 7 22 5323 2339 191 77 . 233 289 555 15 576 1072 13200 685 566 2520 Ignored by Resistances 14290 | . . 284 13 . 95 . 482 166 69 98 109 327 236 10 27 1972 1190 117 48 . 163 141 447 . 281 355 6755 308 230 367 Regen/Repaired (Parts) 904 | . . . . 778 10 . . . . . . . . . . . . . . . . . . . . . 116 . . . Core Remaining (%) 69 | 100 . . . 100 . . . . . . 98 . . . . 56 . . . . 65 . . 100 . . 17 . . 19 Volleys Fired 1467 | 7 . 57 6 . 27 13 60 26 17 12 24 42 28 12 5 68 144 24 5 . 18 27 82 14 35 63 472 36 48 95 Largest 12 | 3 . 11 7 . 11 11 12 7 7 10 11 12 12 12 10 12 12 12 11 . 12 12 12 11 11 10 12 7 9 9 Hottest 1067 | 110 . 550 550 . 677 624 637 498 498 622 652 656 656 658 458 665 888 856 766 . 856 848 847 761 736 902 1067 602 788 778 Shots Fired 9883 | 21 . 316 39 . 258 114 328 152 91 83 223 315 314 127 48 508 1572 284 54 . 177 319 409 73 382 319 2448 84 199 626 Gun 3167 | 21 . 237 18 . 95 . . . . . . 35 56 23 9 84 774 141 30 . 79 131 172 30 207 131 780 34 23 57 Cannon 6114 | . . 8 6 . 112 102 199 101 67 77 171 230 224 96 39 385 795 143 24 . 98 188 237 43 175 188 1625 42 175 564 Launcher 57 | . . . . . . . . . . . . . . . . . . . . . . . . . . . 43 8 1 5 Special 545 | . . 71 15 . 51 12 129 51 24 6 52 50 34 8 . 39 3 . . . . . . . . . . . . . Kinetic 5152 | 7 . 71 . . 155 102 159 75 52 67 147 224 252 107 43 414 633 120 24 . 86 160 168 37 175 142 1190 56 107 379 Thermal 3350 | 14 . 245 39 . 103 12 169 77 39 16 76 91 62 20 5 94 540 118 20 . 62 132 194 36 137 100 792 20 43 94 Explosive 57 | . . . . . . . . . . . . . . . . . . . . . . . . . . . 43 8 1 5 Electromagnetic 1324 | . . . . . . . . . . . . . . . . . 399 46 10 . 29 27 47 . 70 77 423 . 48 148 Robot Hit Streak 128 | 9 . 27 25 . 27 12 36 41 21 24 19 31 36 14 10 22 57 39 28 . 49 20 33 8 31 28 128 27 54 62 Robot Miss Streak 7 | 1 . 2 . . 5 3 3 1 . 2 7 7 2 2 1 5 4 2 2 . 3 3 3 3 4 5 6 1 1 1 Penetration Max 3 | . . . . . . . . . . 1 . 1 1 . . 1 1 1 . . 1 2 1 . 1 1 3 1 1 1 Secondary Targets 3 | . . 3 . . . . . . . . . . . . . . . . . . . . . . . . . . . . Max Gunslinging Chain 1 | . . 1 . . . . . . . . . . . . . . . . . . . . . . . . . . . . Shots Hit Robots 4605 | 9 . 166 20 . 68 75 122 67 19 34 92 118 124 51 15 222 740 81 17 . 64 92 192 41 182 137 1309 41 119 388 Core Hits 2280 | 3 . 39 10 . 34 12 57 35 12 17 31 58 52 16 7 144 359 41 9 . 27 59 88 11 76 57 792 49 41 144 Critical Kills 107 | . . . . . . . . . 1 . . . 1 . . 4 19 3 1 . 3 3 7 . 7 1 44 2 2 9 Critical Parts Destroyed 156 | . . 1 . . 1 . . . . . . . . 2 1 7 15 2 . . 2 2 9 1 9 1 92 . 3 8 Critical Strikes 645 | . . 6 1 . 10 3 19 14 8 4 13 13 21 6 3 40 108 8 1 . 9 12 22 1 21 8 247 5 11 31 Burn 65 | . . 5 1 . 2 . 14 4 1 . 1 2 3 . . 6 12 . . . . . . . . . 14 . . . Meltdown 38 | . . . . . . . . . 1 . . . . . . . 9 2 . . 3 . 3 . . 1 10 1 2 6 Destroy 278 | . . 1 . . 1 . . . . . . . 1 2 1 11 27 3 1 . 2 5 13 1 17 1 165 2 7 17 Blast 222 | . . . . . 7 3 5 10 6 4 12 11 17 4 2 23 41 . . . 3 6 3 . 4 6 43 2 2 8 Corrupt 42 | . . . . . . . . . . . . . . . . . 19 3 . . 1 1 3 . . . 15 . . . Melee Attacks 21 | . . . . . . . . . . . . . . . . . . . . . . . . . . 2 19 . . . Kinetic 8 | . . . . . . . . . . . . . . . . . . . . . . . . . . 2 6 . . . Impact . | . . . . . . . . . . . . . . . . . . . . . . . . . . . . . . . Slashing 13 | . . . . . . . . . . . . . . . . . . . . . . . . . . . 13 . . . Piercing . | . . . . . . . . . . . . . . . . . . . . . . . . . . . . . . . Sneak Attacks . | . . . . . . . . . . . . . . . . . . . . . . . . . . . . . . . Combat Hostiles . | . . . . . . . . . . . . . . . . . . . . . . . . . . . . . . . Follow-up Attacks 2 | . . . . . . . . . . . . . . . . . . . . . . . . . . . 2 . . . Damage Inflicted 264288 | 113 . 2322 518 . 2031 2474 4516 2413 664 1368 3073 5544 5122 2100 672 11194 31934 3483 685 . 2770 5171 9183 1310 7865 6547 100227 8993 11434 30562 Guns 49596 | 113 . 1711 264 . 545 . . . . . . 460 730 294 134 1607 13719 1261 271 . 911 2087 3061 339 2882 1350 15263 743 579 1272 Cannons 175203 | . . 166 193 . 1181 2394 2252 2181 606 1368 2850 3702 4207 1797 538 7898 15906 2222 414 . 1859 3084 6047 971 4193 4453 64378 3951 10338 26054 Explosions 35220 | . . . . . 120 . 1357 . . . . 992 . . . 1386 2213 . . . . . 75 . 790 675 19560 4299 517 3236 Melee 1095 | . . . . . . . . . . . . . . . . . . . . . . . . . . 69 1026 . . . Ramming 80 | . . . . . . . . . . . . . . . . 46 34 . . . . . . . . . . . . . Kinetic 118458 | 32 . 453 . . 1185 2394 1413 1648 530 1251 2320 3213 4365 1775 592 8079 13072 916 173 . 1356 2306 3230 730 3361 3172 32447 2347 6454 19644 Thermal 108765 | 81 . 1869 518 . 806 80 2554 765 134 117 753 2331 757 325 80 1683 13917 1803 387 . 1006 2436 4762 580 3990 3029 47255 2764 4684 9299 Explosive 20870 | . . . . . . . 549 . . . . . . . . . . . . . . . 75 . 240 . 14602 3882 224 1298 Electromagnetic 15380 | . . . . . 40 . . . . . . . . . . 1386 4911 764 125 . 408 429 1116 . 274 346 5188 . 72 321 Impact . | . . . . . . . . . . . . . . . . . . . . . . . . . . . . . . . Slashing 735 | . . . . . . . . . . . . . . . . . . . . . . . . . . . 735 . . . Piercing . | . . . . . . . . . . . . . . . . . . . . . . . . . . . . . . . Highest Corruption 83 | . . . . . 1 15 16 16 16 16 16 2 3 12 12 48 8 8 8 8 8 4 5 7 7 21 83 . . 1 Average Corruption 18 | . . . . . 1 9 15 16 16 16 16 1 2 11 12 22 5 8 8 8 8 3 4 6 3 15 55 . . 1 Corruption Purged . | . . . . . . . . . . . . . . . . . . . . . . . . . . . . . . . Corruption Blocked 8 | . . . . . . . . . . . . . . . . . . . . . . . . . . . 8 . . . Effects 1137 | . . . . . 3 9 46 21 12 9 21 1 6 15 11 66 84 35 8 2 24 8 38 4 7 44 647 . . 16 Message Errors 145 | . . . . . 3 3 6 2 2 1 5 . . 5 2 4 16 10 2 1 4 1 8 1 2 8 57 . . 2 Matter Fused 162 | . . . . . . 2 18 6 3 2 7 1 1 2 1 13 20 5 . . 7 2 8 . 2 6 53 . . 3 Heat Flow Errors 67 | . . . . . . 1 2 2 2 1 2 . 1 1 1 4 13 3 2 . 2 1 5 . . 2 19 . . 3 Energy Discharges 79 | . . . . . . 2 4 2 1 1 1 . 2 1 1 10 7 4 1 . 3 1 1 1 . 5 29 . . 2 Parts Rejected 15 | . . . . . . . 2 . . . . . . . . 2 1 . . . 1 . . . . 1 8 . . . Parts Fused 5 | . . . . . . . 2 . . . . . . 1 . . . . . . . . . . . . 2 . . . Data Loss (minor) 78 | . . . . . . 1 1 2 . 1 2 . 2 4 . 8 7 5 1 . 2 1 5 . 3 4 26 . . 3 Data Loss (major) 21 | . . . . . . . 1 1 1 . 1 . . . . 1 4 2 1 1 1 . 1 . . 2 3 . . 1 Misfires 29 | . . . . . . . 3 1 1 . . . . . 1 2 2 1 . . . . 5 . . 4 8 . . 1 Alerts 13 | . . . . . . . 1 1 . . . . . . 2 . 2 . . . . . . 1 . 2 4 . . . Misdirections 115 | . . . . . . . 4 . . 1 . . . . . 5 . . . . . . . . . 2 103 . . . Weapon Failures 408 | . . . . . . . 2 4 2 2 3 . . 1 3 17 12 5 1 . 4 2 5 1 . 8 335 . . 1 Overload Shots 1 | . . . . . . . . . . . . . . . . . . . . . . . . . . . . . . 1 Overflow Damage 11987 | . . 6 18 . 30 . 186 62 12 . 63 440 155 63 32 229 621 58 . . 14 36 144 9 273 569 6735 530 721 981 Projectiles 10223 | . . 6 18 . 30 . 27 62 12 . 63 148 155 63 32 217 298 58 . . 14 36 144 9 167 569 6038 513 721 823 Explosions 1764 | . . . . . . . 159 . . . . 292 . . . 12 323 . . . . . . . 106 . 697 17 . 158 Melee . | . . . . . . . . . . . . . . . . . . . . . . . . . . . . . . . Knockbacks 517 | . . . . . 4 . 4 5 . 14 8 23 34 8 . 44 35 . . . 4 7 7 9 12 25 123 2 23 126 Impact . | . . . . . . . . . . . . . . . . . . . . . . . . . . . . . . . Kinetic 481 | . . . . . 4 . 4 5 . 11 7 22 25 8 . 40 32 . . . 3 7 7 9 11 24 113 2 23 124 Secondary 36 | . . . . . . . . . . 3 1 1 9 . . 4 3 . . . 1 . . . 1 1 10 . . 2 Self-Inflicted Damage 1336 | . . . . . 223 . 63 . . . . . . . . 211 400 . . . . 34 28 . 131 102 144 . . . Shots 24 | . . . . . 4 . 1 . . . . . . . . 2 6 . . . . 1 1 . 2 2 5 . . . Rammed 18 | . . . . . . . . . . . . . . . . 16 2 . . . . . . . . . . . . . Targets Rammed 18 | . . . . . . . . . . . . . . . . 16 2 . . . . . . . . . . . . . Kicked . | . . . . . . . . . . . . . . . . . . . . . . . . . . . . . . . Crushed . | . . . . . . . . . . . . . . . . . . . . . . . . . . . . . . . Highest Temperature . | . . . . . . . . . . . . . . . . . . . . . . . . . . . . . . . Average Temperature . | . . . . . . . . . . . . . . . . . . . . . . . . . . . . . . . Received Heat Transfer 9149 | . . 348 18 . 24 . 498 146 . . 55 146 174 . 4 2150 656 47 . . 12 12 26 . 69 12 4665 35 25 27 Siege Activations . | . . . . . . . . . . . . . . . . . . . . . . . . . . . . . . . Martial Activations . | . . . . . . . . . . . . . . . . . . . . . . . . . . . . . . . Shielding Activations . | . . . . . . . . . . . . . . . . . . . . . . . . . . . . . . . Robots Disrupted 38 | . . 3 . . . . 1 1 . . 1 . 1 . . . 5 . . . . . . . 8 7 11 . . . Combat Hostiles 32 | . . 1 . . . . 1 . . . 1 . 1 . . . 5 . . . . . . . 7 7 9 . . . Robots Corrupted 14 | . . . . . . . . . . . . . 1 . . 5 1 . . . . . 2 . . . 5 . . . Combat Hostiles 7 | . . . . . . . . . . . . . . . . 1 . . . . . . 2 . . . 4 . . . Parts Fried 33 | . . . . . . . . . . . . . 1 . . 12 2 2 1 . . . 3 . . 1 10 . . 1 Impact Corruptions 3 | . . . . . . . . . . . . . 1 . . . . . . . . . . . . . 2 . . . Robots Melted 56 | . . 3 . . . . 10 . 1 . 1 1 . . . 1 11 2 . . 3 . 3 . . 1 10 1 2 6 Combat Hostiles 51 | . . 2 . . . . 9 . . . 1 1 . . . 1 11 2 . . 3 . 3 . . 1 8 1 2 6 Parts Melted 171 | . . 11 2 . 6 . 19 4 3 . . 5 . . . 4 40 4 1 . 3 . 9 . 6 5 31 . 3 15 Heat Transferred 87731 | 186 . 5634 1167 . 2137 480 8987 2524 634 148 2014 4104 2081 302 74 3482 14199 1739 370 . 962 2331 4161 591 3284 1951 19705 964 974 2546 Parts Sabotaged 11 | . . . . . . . . . . . . . . . . . 6 . . . . . 2 . . . 3 . . . Parts Stolen . | . . . . . . . . . . . . . . . . . . . . . . . . . . . . . . . Parts Stripped 34 | . . . . . . . . . . . . . . . . . . . . . . . . . . 18 16 . . . Power Chain Reactions 17 | . . . . . . . . . . . . . . . . . 5 . . . . . . . 3 4 5 . . . Alert | -11 -10 -10 -8 -8 -6 -6 -6 -6 -6 -6 -5 -5 -5 -5 -5 -5 -4 -4 -4 -4 -3 -3 -3 -3 -2 -2 -2 -1 -1 -1 ------- Run | Yrd Mat Sub Rec Scr Fac Was Fac Low Low Dat Pro Fac Ext Cet Arc Hub Fac Upp Upp Zhi Pro Res Arm Lab Res Qua Frg Acc Com Ac0 Maximum Alert Level 5 | . . . . . 2 1 4 . . . . 4 4 1 1 5 5 . . . . 2 2 . 3 3 5 5 5 . Low Security (%) 25 | 100 100 . 100 . 28 66 25 . . . . . 31 75 55 21 . . . . . 72 47 . 57 18 5 . . . Level 1 10 | . . . . . 22 33 5 . . . . 2 . 24 44 8 . . . . . 9 40 . 9 36 3 . . . Level 2 8 | . . . . . 49 . 10 . . . . 22 . . . 1 . . . . . 17 12 . 24 16 6 . . . Level 3 9 | . . . . . . . 47 . . . . 15 47 . . 13 3 . . . . . . . 8 28 5 . . . Level 4 12 | . . . . . . . 11 . . . . 60 21 . . 23 14 . . . . . . . . . 19 . . . Level 5 13 | . . . . . . . . . . . . . . . . 2 15 . . . . . . . . . 28 100 100 . High Security 20 | . . . . . . . . . . . . . . . . 29 66 . . . . . . . . . 31 . . . Max Security . | . . . . . . . . . . . . . . . . . . . . . . . . . . . . . . . Sterilizations 1 | . . . . . . . . . . . . . . . . . 1 . . . . . . . . . . . . . Peak Influence 8251 | 10 . . 61 . 696 243 1162 . . . . 1442 1222 245 226 2224 4930 . . . . 542 640 . 912 916 8251 5966 4532 . Initial 4950 | . . . 61 . . 238 103 . . . . 223 702 125 42 58 1100 . . . . 51 55 . . 29 499 4950 3800 . Average 1644 | 2 . . 9 . 372 196 645 . . . . 984 694 167 182 1082 3322 . . . . 174 203 . 259 473 2820 5496 4186 . Influence Increases 34798 | 10 . 260 82 . 966 20 1498 390 130 . 300 1687 991 178 246 2717 4210 570 130 . 370 1034 1800 . 1211 1230 9644 1858 1122 2144 Destroy 0b10 Robot/C 17360 | . . 180 60 . 260 . 580 360 100 . 260 540 600 80 80 880 2660 540 100 . 360 500 1100 . 580 480 6120 620 320 . Destroy 0b10 Robot/NC 875 | 10 . . 20 . 25 . 75 . 10 . 20 60 25 5 5 135 175 . . . . 40 10 . 25 20 165 15 35 . Destroy Leader 3098 | . . 20 . . 74 . 118 30 20 . 20 132 64 . . 162 456 30 30 . 10 126 212 . 174 94 1160 100 66 . Allied During Kill 1333 | . . . . . . . . . . . . . 107 25 85 605 . . . . . . . . . . . 388 123 . Trap Triggered on 0b10 10 | . . . . . . . . . . . . . . . . . . . . . . . . . . 10 . . . . Disable Machine 3510 | . . . . . 420 . 525 . . . . 375 45 30 60 255 285 . . . . 60 150 . 45 240 720 60 45 195 Anti-Garrison Action 300 | . . . . . . . . . . . . . . . . . 150 . . . . . . . . . . 150 . . Destroy Structure 6827 | . . . 2 . 172 20 200 . . . . 430 150 38 16 680 424 . . . . 188 148 . 357 356 1284 210 218 1934 Advance Influence 150 | . . . . . . . . . . . . 150 . . . . . . . . . . . . . . . . . . Partial Spotted 165 | . . . . . 15 . . . . . . . . . . . 30 . . . . 30 15 . . . 45 . 15 15 Lose Combat Pursuer 570 | . . 60 . . . . . . . . . . . . . . 30 . . . . 90 165 . 30 30 150 15 . . Active Sensor Use 600 | . . . . . . . . . . . . . . . . . . . . . . . . . . . . 300 300 . Influence Decreases 32702 | 10 . 132 197 13 285 553 502 594 289 781 183 370 2200 298 183 716 1487 2253 748 2629 294 1004 1541 365 1158 395 2281 4171 2408 4662 Entered New Map 20125 | . . . 67 13 . 443 45 424 179 781 . 44 732 100 63 110 1107 1825 618 2629 . 25 51 365 . 24 389 3301 2138 4652 Time Decay 6046 | 10 . 132 130 . 285 90 354 170 110 . 183 326 236 198 100 282 380 428 120 . 274 278 445 . 254 352 659 130 120 . Lost Part 280 | . . . . . . . . . . . . . . . . 120 . . . . 20 . . . . . 120 . 10 10 Lost Ally 990 | . . . . . . 20 . . . . . . 40 . 20 20 . . 10 . . . . . . . . 740 140 . Purge Threat 5261 | . . . . . . . 103 . . . . . 1192 . . 184 . . . . . 701 1045 . 904 19 1113 . . . Squads Dispatched 229 | . . . . . 2 . 9 . . . . 10 3 . . 18 43 . . . . 4 11 . 8 6 98 12 5 . Investigation 25 | . . . . . 1 . 2 . . . . 3 2 . . . 4 . . . . 1 2 . . . 2 5 3 . Extermination 24 | . . . . . 1 . 3 . . . . 1 . . . . 1 . . . . 2 3 . 2 2 7 1 1 . Reinforcement 31 | . . . . . . . 2 . . . . 4 . . . 7 1 . . . . 1 6 . 2 . 6 1 1 . Assault 104 | . . . . . . . 2 . . . . 1 1 . . 9 36 . . . . . . . . . 53 2 . . Garrison 9 | . . . . . . . . . . . . 1 . . . 2 1 . . . . . . . 1 1 3 . . . Intercept 36 | . . . . . . . . . . . . . . . . . . . . . . . . . 3 3 27 3 . . Searches Triggered . | . . . . . . . . . . . . . . . . . . . . . . . . . . . . . . . Construction Impeded 6 | . . . . . . . 2 . . . . 1 . . . 1 . . . . . . . . . . 2 . . . Haulers Reinforced 4 | . . . . . . . . . . . . . . . . 1 . . . . . 1 . . 1 . . 1 . . Active Scanning Responses 6 | . . . . . . . . . . . . . . . . . . . . . . . . . . . . 3 3 . Cargo Convoy Interrupts . | . . . . . . . . . . . . . . . . . . . . . . . . . . . . . . . Stealth | -11 -10 -10 -8 -8 -6 -6 -6 -6 -6 -6 -5 -5 -5 -5 -5 -5 -4 -4 -4 -4 -3 -3 -3 -3 -2 -2 -2 -1 -1 -1 --------- Run | Yrd Mat Sub Rec Scr Fac Was Fac Low Low Dat Pro Fac Ext Cet Arc Hub Fac Upp Upp Zhi Pro Res Arm Lab Res Qua Frg Acc Com Ac0 Distress Signals 27 | . . . . . . . . . . . . 3 2 . . 1 1 . . . . 1 1 . . 3 6 1 8 . Communications Jammed 22 | . . . . . . . . . . . . . . . . . 22 . . . . . . . . . . . . . Distress Signals 20 | . . . . . . . . . . . . . . . . . 20 . . . . . . . . . . . . . Times Spotted 1214 | . . 23 2 . 11 6 41 16 4 4 16 38 35 4 6 129 163 23 4 . 19 35 72 1 37 40 359 39 17 70 Peak Tracking Total 37 | . . 5 1 . 5 2 5 9 3 4 7 5 6 5 1 37 12 9 2 . 5 8 11 1 6 10 32 15 7 7 Tactical Retreats 50 | . . 2 . . 2 1 4 . . . 1 2 3 . . 9 2 . . . . 5 4 . 1 1 9 1 . 3 Traps | -11 -10 -10 -8 -8 -6 -6 -6 -6 -6 -6 -5 -5 -5 -5 -5 -5 -4 -4 -4 -4 -3 -3 -3 -3 -2 -2 -2 -1 -1 -1 ------- Run | Yrd Mat Sub Rec Scr Fac Was Fac Low Low Dat Pro Fac Ext Cet Arc Hub Fac Upp Upp Zhi Pro Res Arm Lab Res Qua Frg Acc Com Ac0 Traps Triggered 41 | . . 1 . . 1 . 4 . . . . 1 3 . . 1 . 1 . . . 2 2 . 4 2 18 . 1 . Indirectly 1 | . . . . . . . . . . . . . . . . 1 . . . . . . . . . . . . . . Trap Hack Attempts . | . . . . . . . . . . . . . . . . . . . . . . . . . . . . . . . Triggered . | . . . . . . . . . . . . . . . . . . . . . . . . . . . . . . . Disarmed 18 | . . . . . . . . . . . . 3 . . . . . . . . . 6 . . . 6 3 . . . Reprogrammed 7 | . . . . . . . . . . . . . 1 . . . . . . . . . . . . 6 . . . . Reused 1 | . . . . . . . . . . . . . . . . . . . . . . . . . . 1 . . . . Traps Extracted . | . . . . . . . . . . . . . . . . . . . . . . . . . . . . . . . Installed . | . . . . . . . . . . . . . . . . . . . . . . . . . . . . . . . Triggered 1 | . . . . . . . . . . . . . . . . . . . . . . . . . . 1 . . . . Machines | -11 -10 -10 -8 -8 -6 -6 -6 -6 -6 -6 -5 -5 -5 -5 -5 -5 -4 -4 -4 -4 -3 -3 -3 -3 -2 -2 -2 -1 -1 -1 ---------- Run | Yrd Mat Sub Rec Scr Fac Was Fac Low Low Dat Pro Fac Ext Cet Arc Hub Fac Upp Upp Zhi Pro Res Arm Lab Res Qua Frg Acc Com Ac0 Machines Disabled 276 | . . 1 . . 28 . 35 2 . 1 1 25 4 4 4 17 20 1 . . 3 4 10 3 3 17 69 5 3 16 Max in Single Turn 8 | . . 1 . . 6 . 8 1 . 1 1 7 1 3 1 3 4 1 . . 1 2 2 1 1 4 4 1 1 2 Garrison Access 8 | . . . . . 1 . 1 . . . . 1 . . . 1 1 . . . . . . . . 1 1 1 . . Network Hub 2 | . . . . . . . . . . . . . . . . 2 . . . . . . . . . . . . . . Energy Cycler 1 | . . . . . . . . . . . . . . . . . . . . . . . . . . . . 1 . . Machines Repaired . | . . . . . . . . . . . . . . . . . . . . . . . . . . . . . . . Machines Dismantled . | . . . . . . . . . . . . . . . . . . . . . . . . . . . . . . . Machines Sabotaged . | . . . . . . . . . . . . . . . . . . . . . . . . . . . . . . . Overloaded Fab Kills . | . . . . . . . . . . . . . . . . . . . . . . . . . . . . . . . Hacking | -11 -10 -10 -8 -8 -6 -6 -6 -6 -6 -6 -5 -5 -5 -5 -5 -5 -4 -4 -4 -4 -3 -3 -3 -3 -2 -2 -2 -1 -1 -1 --------- Run | Yrd Mat Sub Rec Scr Fac Was Fac Low Low Dat Pro Fac Ext Cet Arc Hub Fac Upp Upp Zhi Pro Res Arm Lab Res Qua Frg Acc Com Ac0 Machines Accessed 132 | . . . 3 5 7 . 7 1 1 . . 5 14 3 1 7 7 . . 8 . 5 11 3 3 10 18 8 4 1 Terminals 93 | . . . 3 . 5 . 4 . 1 . . 2 13 3 . 6 5 . . . . 5 9 . 3 9 14 7 4 . Fabricators 9 | . . . . . 1 . 2 . . . . 2 . . . . 2 . . . . . 2 . . . . . . . Repair Stations . | . . . . . . . . . . . . . . . . . . . . . . . . . . . . . . . Recycling Units 5 | . . . . . . . . . . . . . 1 . . . . . . . . . . . . . 3 1 . . Scanalyzers . | . . . . . . . . . . . . . . . . . . . . . . . . . . . . . . . Garrison Access 6 | . . . . . 1 . 1 . . . . 1 . . . 1 . . . . . . . . . 1 1 . . . Total Hacks 822 | . . . 20 28 33 . 44 1 1 . . 32 67 6 25 61 44 . . 47 . 48 79 23 19 51 138 30 20 5 Successful 728 | . . . 20 28 31 . 44 1 1 . . 32 65 6 25 49 42 . . 47 . 44 55 23 16 46 102 26 20 5 Failed 94 | . . . . . 2 . . . . . . . 2 . . 12 2 . . . . 4 24 . 3 5 36 4 . . Catastrophic 18 | . . . . . . . . . . . . . . . . 4 . . . . . . 2 . . . 12 . . . Database Lockouts . | . . . . . . . . . . . . . . . . . . . . . . . . . . . . . . . Manual 112 | . . . . . 4 . 2 . . . . . 1 1 . 15 5 . . . . 3 25 2 1 7 27 14 5 . Terminals 662 | . . . 20 . 30 . 39 . 1 . . 27 66 6 . 60 39 . . . . 48 76 . 19 50 133 28 20 . Fabricators 18 | . . . . . 2 . 4 . . . . 4 . . . . 5 . . . . . 3 . . . . . . . Repair Stations . | . . . . . . . . . . . . . . . . . . . . . . . . . . . . . . . Recycling Units 7 | . . . . . . . . . . . . . 1 . . . . . . . . . . . . . 4 2 . . Scanalyzers . | . . . . . . . . . . . . . . . . . . . . . . . . . . . . . . . Garrison Access 6 | . . . . . 1 . 1 . . . . 1 . . . 1 . . . . . . . . . 1 1 . . . Terminal Hacks 697 | . . . 20 28 28 . 39 1 1 . . 27 64 6 25 48 37 . . 47 . 44 52 23 16 45 97 24 20 5 Record 213 | . . . 4 27 1 . 4 . 1 . . 3 10 5 25 9 10 . . 35 . 10 7 22 1 11 19 3 6 . Part Schematic 49 | . . . 6 . 4 . 6 . . . . 3 3 . . 1 5 . . 4 . 4 3 . 1 3 5 . 1 . Robot Schematic 12 | . . . 1 . . . . . . . . . 3 . . 1 . . . . . . 1 . . 3 2 . 1 . Robot Analysis 17 | . . . 1 . . . . . . . . 2 . . . 3 . . . 4 . . . . . . 4 2 1 . Prototype ID Bank 31 | . . . . . 2 . 1 . . . . . 2 . . 3 2 . . 4 . . 2 . 1 1 9 2 2 . Open Door 13 | . . . . . . . . 1 . . . . 5 1 . . . . . . . . . . 1 1 . 3 1 . Open DSF 2 | . . . . . 1 . . . . . . . . . . . 1 . . . . . . . . . . . . . Level Access Points 11 | . . . . . 1 . . . . . . 1 1 . . . 1 . . . . . 1 . . . 3 2 1 . Branch Access Points 14 | . . . 1 . 1 . 1 . . . . . 1 . . 1 2 . . . . 1 1 . . . 3 1 1 . Emergency Access Points 13 | . . . . . . . 1 . . . . 1 . . . 3 1 . . . . 1 2 . 1 . 1 1 1 . Machine Index 13 | . . . . . 1 . 1 . . . . 1 . . . 1 . . . . . 1 1 . . 2 3 1 1 . Terminal Index 5 | . . . . . . . 1 . . . . 1 1 . . . . . . . . . 1 . . . 1 . . . Fabricator Index 4 | . . . . . . . . . . . . 1 1 . . 1 . . . . . . . . . . . . 1 . Repair Station Index 5 | . . . . . 1 . . . . . . . . . . 1 . . . . . 1 . . . . 1 . 1 . Recycling Unit Index 5 | . . . . . . . . . . . . . . . . 1 1 . . . . 1 1 . . . 1 . . . Scanalyzer Index 2 | . . . . . . . . . . . . . 1 . . . 1 . . . . . . . . . . . . . Garrison Index 3 | . . . 1 . 1 . . . . . . . . . . 1 . . . . . . . . . . . . . . Alert Level 11 | . . . . . 1 . 1 . . . . 1 3 . . . . . . . . . 1 . . 2 2 . . . Unreport Threat 51 | . . . . . . . 2 . . . . . 9 . . 4 . . . . . 8 10 . 7 2 9 . . . Locate Traps 14 | . . . . . 1 . 2 . . . . 1 1 . . . 3 . . . . 1 2 . . 1 2 . . . Disarm Traps 7 | . . . . . . . . . . . . 2 . . . . . . . . . 2 . . . 2 1 . . . Reprogram Traps 4 | . . . . . . . . . . . . . 2 . . . . . . . . . . . . 2 . . . . Dispatch Records 8 | . . . 1 . 2 . . . . . . . . . . 2 . . . . . . . . . 1 2 . . . Maintenance Status 5 | . . . . . 1 . . . . . . 1 2 . . 1 . . . . . . . . . . . . . . Security Status 3 | . . . . . . . 1 . . . . . 1 . . . . . . . . . . . . . 1 . . . Surveillance Status 7 | . . . . . 1 . 1 . . . . 1 1 . . . . . . . . . . . . 2 1 . . . Patrol Status 8 | . . . . . . . . . . . . 1 . . . 2 . . . . . 2 . . . 2 1 . . . Transport Status 6 | . . . . . 1 . . . . . . 2 1 . . . 1 . . . . . . . . . 1 . . . Investigation Status 9 | . . . 1 . 1 . 1 . . . . . 2 . . 1 1 . . . . 1 . . . 1 . . . . Extermination Status 9 | . . . . . 1 . 1 . . . . . 1 . . . . . . . . 2 2 . . 2 . . . . Reinforcement Status 9 | . . . 1 . 1 . 1 . . . . 1 1 . . . . . . . . 1 . . . 1 2 . . . Assault Status 5 | . . . . . 1 . 2 . . . . . . . . . . . . . . . . . . 1 1 . . . Recall Investigation 17 | . . . 1 . 1 . 2 . . . . . 2 . . 1 3 . . . . 1 3 . . . 1 1 1 . Recall Extermination 16 | . . . . . 1 . 3 . . . . . 1 . . . 1 . . . . . 4 . . . 5 1 . . Recall Reinforcements 31 | . . . 1 . 1 . 2 . . . . 1 2 . . 4 1 . . . . 2 7 . . 1 7 2 . . Recall Assault 15 | . . . . . 1 . 1 . . . . . 1 . . 2 1 . . . . 1 1 . 1 1 2 3 . . Hauler Manifests 11 | . . . . . . . . . . . . 1 2 . . 2 . . . . . 2 1 . 1 1 1 . . . Registered Components 7 | . . . . . . . 1 . . . . . . . . 1 . . . . . 1 . . 1 1 1 . 1 . Registered Prototypes 6 | . . . . . . . 1 . . . . 1 . . . 1 1 . . . . 1 . . . . 1 . . . Zone Layout 18 | . . . 1 . . . 2 . . . . 1 4 . . 1 1 . . . . . 1 . 1 1 3 2 . . Proto ID Catalog 2 | . . . . 1 . . . . . . . . . . . . . . . . . . . . . . 1 . . . Release Object 1 | . . . . . . . . . . . . . . . . . . . . . . . . 1 . . . . . . Gate Test 138-A 2 | . . . . . . . . . . . . . . . . . . . . . . . . . . . . . . 2 Gate Test 138-B 1 | . . . . . . . . . . . . . . . . . . . . . . . . . . . . . . 1 Gate Test 138-C 1 | . . . . . . . . . . . . . . . . . . . . . . . . . . . . . . 1 Gate Test 138-END 1 | . . . . . . . . . . . . . . . . . . . . . . . . . . . . . . 1 Fabricator Hacks 18 | . . . . . 2 . 4 . . . . 4 . . . . 5 . . . . . 3 . . . . . . . Network Status 1 | . . . . . . . . . . . . . . . . . 1 . . . . . . . . . . . . . Load Schematic 8 | . . . . . 1 . 2 . . . . 2 . . . . 2 . . . . . 1 . . . . . . . Build 9 | . . . . . 1 . 2 . . . . 2 . . . . 2 . . . . . 2 . . . . . . . Repair Station Hacks . | . . . . . . . . . . . . . . . . . . . . . . . . . . . . . . . Recycling Unit Hacks 7 | . . . . . . . . . . . . . 1 . . . . . . . . . . . . . 4 2 . . Report Inventory 2 | . . . . . . . . . . . . . . . . . . . . . . . . . . . 2 . . . Retrieve Matter 2 | . . . . . . . . . . . . . 1 . . . . . . . . . . . . . . 1 . . Retrieve Components 3 | . . . . . . . . . . . . . . . . . . . . . . . . . . . 2 1 . . Scanalyzer . | . . . . . . . . . . . . . . . . . . . . . . . . . . . . . . . Garrison Access Hacks 6 | . . . . . 1 . 1 . . . . 1 . . . 1 . . . . . . . . . 1 1 . . . Seal Access 6 | . . . . . 1 . 1 . . . . 1 . . . 1 . . . . . . . . . 1 1 . . . Unauthorized Hacks . | . . . . . . . . . . . . . . . . . . . . . . . . . . . . . . . Terminals . | . . . . . . . . . . . . . . . . . . . . . . . . . . . . . . . Fabricators . | . . . . . . . . . . . . . . . . . . . . . . . . . . . . . . . Repair Stations . | . . . . . . . . . . . . . . . . . . . . . . . . . . . . . . . Recycling Units . | . . . . . . . . . . . . . . . . . . . . . . . . . . . . . . . Scanalyzers . | . . . . . . . . . . . . . . . . . . . . . . . . . . . . . . . Garrison Access . | . . . . . . . . . . . . . . . . . . . . . . . . . . . . . . . Data Cores Recovered 10 | . . . . . 1 . 2 . . . . . 1 . . . . . . . . . 1 . . . 3 1 1 . Used 4 | . . . . . . . 1 . . . . . . . . . . . . . . . 1 . . . . 1 1 . Hacking Detections 52 | . . . 2 . 4 . 4 . . . . 2 5 . . 1 5 . . . . 3 6 . 2 6 8 3 1 . Full Trace Events 14 | . . . . . 1 . 2 . . . . 2 1 . . . 4 . . . . 1 1 . . . 1 1 . . Feedback Events 1 | . . . . . . . . . . . . . . . . . 1 . . . . . . . . . . . . . Corruption 1 | . . . . . . . . . . . . . . . . . 1 . . . . . . . . . . . . . Feedback Blocked . | . . . . . . . . . . . . . . . . . . . . . . . . . . . . . . . Robot Schematics Acquired 13 | . . . 1 . . . . . . . . . 3 . . 1 . . . . . . 1 . . 3 3 . 1 . Robots Built . | . . . . . . . . . . . . . . . . . . . . . . . . . . . . . . . Authchips . | . . . . . . . . . . . . . . . . . . . . . . . . . . . . . . . Time . | . . . . . . . . . . . . . . . . . . . . . . . . . . . . . . . Total Robot Build Rating . | . . . . . . . . . . . . . . . . . . . . . . . . . . . . . . . Part Schematics Acquired 70 | . . . 6 . 4 . 6 . . . . 3 3 . . 1 5 . . 4 . 4 3 . 1 8 21 . 1 . Parts Built 10 | . . . . . 1 . 2 . . . . 4 . . . . 2 . . . . . 1 . . . . . . . Authchips . | . . . . . . . . . . . . . . . . . . . . . . . . . . . . . . . Time 473 | . . . . . 47 . 126 . . . . 106 . . . . 78 . . . . . 116 . . . . . . . Total Part Build Rating 62 | . . . . . 5 . 10 . . . . 32 . . . . 10 . . . . . 5 . . . . . . . Parts Repaired . | . . . . . . . . . . . . . . . . . . . . . . . . . . . . . . . Time . | . . . . . . . . . . . . . . . . . . . . . . . . . . . . . . . Parts Recycled . | . . . . . . . . . . . . . . . . . . . . . . . . . . . . . . . Recycled Matter . | . . . . . . . . . . . . . . . . . . . . . . . . . . . . . . . Retrieved Matter . | . . . . . . . . . . . . . . . . . . . . . . . . . . . . . . . Retrieved Components 5 | . . . . . . . . . . . . . . . . . . . . . . . . . . . 4 1 . . Parts Scanalyzed . | . . . . . . . . . . . . . . . . . . . . . . . . . . . . . . . Part Schematics Acquired . | . . . . . . . . . . . . . . . . . . . . . . . . . . . . . . . Parts Damaged . | . . . . . . . . . . . . . . . . . . . . . . . . . . . . . . . Bothacking | -11 -10 -10 -8 -8 -6 -6 -6 -6 -6 -6 -5 -5 -5 -5 -5 -5 -4 -4 -4 -4 -3 -3 -3 -3 -2 -2 -2 -1 -1 -1 ------------ Run | Yrd Mat Sub Rec Scr Fac Was Fac Low Low Dat Pro Fac Ext Cet Arc Hub Fac Upp Upp Zhi Pro Res Arm Lab Res Qua Frg Acc Com Ac0 Used RIF Installer . | . . . . . . . . . . . . . . . . . . . . . . . . . . . . . . . Robots Hacked . | . . . . . . . . . . . . . . . . . . . . . . . . . . . . . . . Non-combat . | . . . . . . . . . . . . . . . . . . . . . . . . . . . . . . . Combat . | . . . . . . . . . . . . . . . . . . . . . . . . . . . . . . . Robot Hacks Applied . | . . . . . . . . . . . . . . . . . . . . . . . . . . . . . . . Relay Couplers Released 2 | . . . . . . . . . . . . 1 . . . . 1 . . . . . . . . . . . . . Machine Destruction 2 | . . . . . . . . . . . . 1 . . . . 1 . . . . . . . . . . . . . Fabnet Peak Effective % . | . . . . . . . . . . . . . . . . . . . . . . . . . . . . . . . Robots Rewired . | . . . . . . . . . . . . . . . . . . . . . . . . . . . . . . . Allies Hacked . | . . . . . . . . . . . . . . . . . . . . . . . . . . . . . . . Hacks Repelled . | . . . . . . . . . . . . . . . . . . . . . . . . . . . . . . . Allies | -11 -10 -10 -8 -8 -6 -6 -6 -6 -6 -6 -5 -5 -5 -5 -5 -5 -4 -4 -4 -4 -3 -3 -3 -3 -2 -2 -2 -1 -1 -1 -------- Run | Yrd Mat Sub Rec Scr Fac Was Fac Low Low Dat Pro Fac Ext Cet Arc Hub Fac Upp Upp Zhi Pro Res Arm Lab Res Qua Frg Acc Com Ac0 Total Allies 58 | . . . . . . 1 . . . . . . 6 5 . . . . . . . . . . . . . 39 7 . Largest Group 19 | . . . . . . 1 . . . . . . 3 7 7 6 . . . . . . . . . . . 19 7 . Highest-Rated Group 537 | . . . . . . 31 . . . . . . 223 537 537 519 . . . . . . . . . . . 266 100 . Highest-Rated Ally 159 | . . . . . . 31 . . . . . . 159 159 96 96 . . . . . . . . . . . 15 15 . Total Orders . | . . . . . . . . . . . . . . . . . . . . . . . . . . . . . . . Ally Attacks 300 | . . . . . . 4 . . . . . . 34 13 21 62 . . . . . . . . . . . 154 12 . Total Damage 5946 | . . . . . . 83 . . . . . . 616 347 588 2062 . . . . . . . . . . . 2012 238 . Kills 41 | . . . . . . . . . . . . . 8 2 3 14 . . . . . . . . . . . 13 1 . Allies Corrupted 5 | . . . . . . . . . . . . . . . . 4 . . . . . . . . . . . . 1 . Allies Melted 1 | . . . . . . . . . 1 . . . . . . . . . . . . . . . . . . . . . Intel | -11 -10 -10 -8 -8 -6 -6 -6 -6 -6 -6 -5 -5 -5 -5 -5 -5 -4 -4 -4 -4 -3 -3 -3 -3 -2 -2 -2 -1 -1 -1 ------- Run | Yrd Mat Sub Rec Scr Fac Was Fac Low Low Dat Pro Fac Ext Cet Arc Hub Fac Upp Upp Zhi Pro Res Arm Lab Res Qua Frg Acc Com Ac0 Active Infowar (turns) 18429 | . . 923 85 377 590 180 1034 349 230 116 402 729 533 418 216 870 1541 . 157 84 652 606 1384 216 564 821 3702 274 295 1081 Optics 1387 | . . 923 85 377 . . . . . . . . . . . . 2 . . . . . . . . . . . . . Sensors 1720 | . . . . . . . . . . . . . . . . . . . . . . . . . . . 1720 . . . A.S.S. 2593 | . . . . . . . . . . . . . . . . . . . . . . . . . . . 943 274 295 1081 Terrain 3541 | . . . . . . . . . . . . . . . . . . . . . . . 767 133 79 821 1741 . . . Cloaking 6512 | . . . . . . . . . . . . . . . . . . . 157 84 652 606 1381 216 564 447 755 274 295 1081 Jamming 1541 | . . . . . . . . . . . . . . . . . 1541 . . . . . . . . . . . . . ECM 6204 | . . . . . 590 180 1034 349 230 116 402 729 533 418 216 870 . . . . . . . . . . . . . 537 Robot Analysis Total 17 | . . . 1 . . . . . . . . 2 . . . 3 . . . 4 . . . . . . 4 2 1 . Derelict Logs Recovered 12 | . . 2 . 4 . . . 1 1 . 2 . . . . . . 1 1 . . . . . . . . . . . Drone Launches 3 | . . . . . . . . . . . . . . . . . . 3 . . . . . . . . . . . . Drone Recoveries . | . . . . . . . . . . . . . . . . . . . . . . . . . . . . . . . Exploration | -11 -10 -10 -8 -8 -6 -6 -6 -6 -6 -6 -5 -5 -5 -5 -5 -5 -4 -4 -4 -4 -3 -3 -3 -3 -2 -2 -2 -1 -1 -1 ------------- Run | Yrd Mat Sub Rec Scr Fac Was Fac Low Low Dat Pro Fac Ext Cet Arc Hub Fac Upp Upp Zhi Pro Res Arm Lab Res Qua Frg Acc Com Ac0 Turns Passed 23021 | 48 129 1496 638 1257 645 180 1034 349 230 116 402 729 533 418 216 933 2681 1055 252 84 652 606 1384 216 564 821 3703 274 295 1081 Spaces Moved 27841 | 31 64 1044 496 2002 1047 209 1224 440 371 148 719 950 611 286 156 511 1543 1695 412 146 1050 1053 1232 439 742 1006 4294 735 571 2614 Core 7597 | 21 64 77 47 644 . . . . . . . . . . . 394 1543 1695 412 146 1050 46 . . 267 284 745 . . 162 Treads . | . . . . . . . . . . . . . . . . . . . . . . . . . . . . . . . Legs . | . . . . . . . . . . . . . . . . . . . . . . . . . . . . . . . Wheels 1769 | 10 . 967 449 343 . . . . . . . . . . . . . . . . . . . . . . . . . . Hover . | . . . . . . . . . . . . . . . . . . . . . . . . . . . . . . . Flight 18475 | . . . . 1015 1047 209 1224 440 371 148 719 950 611 286 156 117 . . . . . 1007 1232 439 475 722 3549 735 571 2452 Fastest Speed 25 | 50 50 50 50 35 35 35 35 35 35 35 35 35 35 35 115 50 50 50 50 50 50 35 35 35 35 40 25 25 25 25 Average Speed 44 | 59 50 105 104 52 35 35 35 35 35 35 35 35 35 105 115 91 50 50 50 50 50 35 47 35 43 42 34 25 25 26 Slowest Speed 115 | 80 50 110 110 110 35 35 35 35 35 35 35 35 35 115 115 115 50 50 50 50 50 50 105 35 50 50 50 25 25 50 Overloaded Moves . | . . . . . . . . . . . . . . . . . . . . . . . . . . . . . . . Propulsion Burnouts . | . . . . . . . . . . . . . . . . . . . . . . . . . . . . . . . Robots Hopped 45 | . . . . . 3 . 2 . . . 2 7 8 . . . . . . . . 6 . . 3 . 10 3 . 1 Potential Cave-ins 93 | . . . . . . . 7 . 5 . . . 6 . . . 6 . . . . 8 . . . . 20 7 21 13 Cave-ins Triggered 4 | . . . . . . . . . 2 . . . . . . . . . . . . . . . . . . . . 2 Teleports 4 | . . . . . . . . . . . . . . . . . . . . 1 . . . . . 1 . . 1 1 Exploration Rate (%) 64 | 3 26 67 91 94 22 100 43 74 63 92 85 19 86 94 99 61 28 98 72 68 93 36 60 100 28 73 87 26 29 95 Regions Visited 30 Branch Regions 21 Pre-discovered Areas 11 | . . 2 . 5 . . . . . . . . . . . . . 1 . 3 . . . . . . . . . . Known Exits Taken 23 | . . . . 1 . . 1 1 1 1 1 1 1 1 1 1 1 . 1 1 1 1 1 1 1 1 1 1 1 . Unknown Exits Taken 5 | 1 1 1 1 . . . . . . . . . . . . . . 1 . . . . . . . . . . . . Scrap Searched 20 | . . . . 7 . . . 2 1 . 2 . . . . . . 2 5 . 1 . . . . . . . . . Spaces Dug 231 | . . . . . . . 14 . 5 . . . 20 . . . 8 . . . . 34 9 . . . 50 34 31 26 Terrain Destroyed 4367 | . . 4 3 . 211 33 263 41 47 17 94 238 139 19 13 507 295 125 19 . 43 133 81 10 146 165 724 109 132 756 Melee . | . . . . . . . . . . . . . . . . . . . . . . . . . . . . . . . Projectile 2700 | . . 4 3 . 55 33 100 41 47 17 94 94 139 19 13 171 209 125 19 . 43 133 81 10 85 87 415 69 122 472 AOE 1656 | . . . . . 156 . 163 . . . . 144 . . . 336 86 . . . . . . . 61 78 298 40 10 284 Terrain Rammed . | . . . . . . . . . . . . . . . . . . . . . . . . . . . . . . . Walls Destroyed . | . . . . . . . . . . . . . . . . . . . . . . . . . . . . . . . Machines Disabled . | . . . . . . . . . . . . . . . . . . . . . . . . . . . . . . . Actions | -11 -10 -10 -8 -8 -6 -6 -6 -6 -6 -6 -5 -5 -5 -5 -5 -5 -4 -4 -4 -4 -3 -3 -3 -3 -2 -2 -2 -1 -1 -1 --------- Run | Yrd Mat Sub Rec Scr Fac Was Fac Low Low Dat Pro Fac Ext Cet Arc Hub Fac Upp Upp Zhi Pro Res Arm Lab Res Qua Frg Acc Com Ac0 Total 34277 | 43 160 1208 579 2203 1197 264 1542 509 399 171 752 1171 804 357 177 755 3025 1828 441 155 1123 1198 1836 474 875 1268 5485 782 664 2832 Wait 3422 | . 97 48 52 189 96 27 200 12 . 7 . 163 114 51 17 124 1100 68 . 4 20 8 400 1 39 125 362 12 18 68 Move 27721 | 30 63 1043 495 2001 1041 208 1219 439 368 147 714 936 596 285 155 510 1542 1694 411 145 1049 1041 1231 438 735 1005 4273 728 570 2609 Hop 40 | . . . . . 3 . 2 . . . 2 6 6 . . . . . . . . 5 . . 3 . 9 3 . 1 Pick Up 15 | . . . . . . . . . . . . . . . . . . . . . . . . 1 . 5 7 . . 2 Fast Attach 281 | 5 . 16 11 6 6 . 11 2 . . . 2 . 1 . 1 41 2 3 4 1 11 20 10 7 14 83 3 11 10 Attach 22 | . . . . . . . . . . . . . . . . . . . . . . . . . 5 4 7 . 2 4 Detach 40 | . . . . . . . 1 . . . . . . . . . 2 . . . . 1 . 2 8 7 11 . 5 3 Swap 70 | . . 1 . 1 4 . 6 . . . . 4 1 1 . 1 17 . . . 1 10 11 1 3 . 7 . . 1 Drop 207 | 1 . 4 3 6 14 . 12 2 . . . 4 1 1 . 2 28 . 2 2 1 16 25 7 2 19 51 . . 4 Fire 1467 | 7 . 57 6 . 27 13 60 26 17 12 24 42 28 12 5 68 144 24 5 . 18 27 82 14 35 63 472 36 48 95 Melee 19 | . . . . . . . . . . . . . . . . . . . . . . . . . . 2 17 . . . Ram 19 | . . . . . . . . . . . . . . . . 17 2 . . . . . . . . . . . . . Kick . | . . . . . . . . . . . . . . . . . . . . . . . . . . . . . . . Crush . | . . . . . . . . . . . . . . . . . . . . . . . . . . . . . . . Escape Stasis 61 | . . . . . . . 2 . 2 . . . 24 . . . . . . . . 30 . . . . 1 . . 2 Rewire 5 | . . . . . . . . . . . . . . . . . . . 5 . . . . . . . . . . . Trap . | . . . . . . . . . . . . . . . . . . . . . . . . . . . . . . . Miscellaneous 888 | . . 39 12 . 6 16 29 28 12 5 12 14 34 6 . 32 149 40 15 . 33 49 67 . 38 24 185 . 10 33 Route ------- -11/Scrapyard -10/Materials (discovered 2 exits: [*Mat] / [*Sub]) -10/Subcaves (discovered 3 exits: [*Mat x2] / *Rec) -8/Recycling (discovered 2 exits: *Fac / *Scr) -8/Scraptown (discovered 2 exits: *Fac x2) -6/Factory (discovered 6 exits: *Fac x4 / *Low x2) -6/Waste -6/Factory (discovered 4 exits: *Fac x2 / *Low x2) -6/Lower Caves -6/Lower Caves (discovered 2 exits: *Fac / *Dat) -6/Data Miner -5/Proximity Caves -5/Factory (discovered 6 exits: Fac x4 / Upp / *Ext) -5/Extension (discovered 3 exits: *Fac x2 / *Cet) -5/Cetus (discovered 3 exits: *Fac x2 / *Arc) -5/Archives (discovered 3 exits: *Fac / *Hub x2) -5/Hub_04(d) (discovered 4 exits: *Fac x4) -4/Factory (discovered 6 exits: *Res x4 / *Upp x2) -4/Upper Caves -4/Upper Caves (discovered 2 exits: *Res / *Zhi) -4/Zhirov -3/Proximity Caves -3/Research (discovered 5 exits: *Res x2 / *Arm / Tes x2) -3/Armory (discovered 3 exits: *Res x2 / *Lab) -3/Lab -2/Research -2/Quarantine (discovered 3 exits: *Acc / *Sec / *Frg) -2/Protoforge -1/Access (discovered 2 exits: *Sur / *Com) -1/Command (discovered 3 exits: *Sur x2 / *Ac0) -1/Access_0 Tau Ceti IV Orbit History --------- Turn | Location | Event 1 | -11/Scrapyard | Upgraded with Utility slot (x11) 1 | -11/Scrapyard | Upgraded with Weapon slot (x11) 10 | -11/Scrapyard | Discovered new exit (range 18) 49 | -11/Scrapyard | Entered Materials 69 | -10/Materials | Discovered new exit (range 23) 147 | -10/Materials | Discovered new exit (range 9) 178 | -10/Materials | Entered Subcaves 179 | -10/Subcaves | Ambushed by Subdwellers from Twisted Machinery 179 | -10/Subcaves | Approached by a straggling Scientist 537 | -10/Subcaves | Build established: Wizard-Executioner 666 | -10/Subcaves | Learned location of Zion (-7) 673 | -10/Subcaves | Ambushed by Subdwellers from Twisted Machinery 692 | -10/Subcaves | Shifting Twisted Machinery released Flamer 705 | -10/Subcaves | Shifting Twisted Machinery released Barrage Gun 844 | -10/Subcaves | Shifting Twisted Machinery released Sub. Shrapnel Launcher 1037 | -10/Subcaves | Reached level 2 1104 | -10/Subcaves | Learned location of 1 exit from Materials 1125 | -10/Subcaves | Discovered new exit (range 9) 1469 | -10/Subcaves | Discovered new exit (range 11) 1506 | -10/Subcaves | Met a Zionite searching for "candidates" 1595 | -10/Subcaves | Discovered new exit (range 21) 1674 | -10/Subcaves | Entered Recycling 1676 | -8/Recycling | Reached level 3 2232 | -8/Recycling | Discovered new exit (range 24) 2297 | -8/Recycling | Scanned before Scraplab entrance 2306 | -8/Recycling | Entered Scraplab 2311 | -8/Recycling | Discovered new exit (range 3) 2312 | -8/Recycling | Entered Scraptown 2323 | -8/Scraptown | Received an X-ray algorithm 2403 | -8/Scraptown | Discovered new exit (range 13) 2410 | -8/Scraptown | Scanned Subdweller tech in exchange for log data 2411 | -8/Scraptown | Learned location of Extension (-5) 2412 | -8/Scraptown | Learned Factory emergency access door positions 2412 | -8/Scraptown | Learned location of Quarantine (-2) 2413 | -8/Scraptown | Learned Research non-interactive machine intel 2427 | -8/Scraptown | Visited The Evicted 2452 | -8/Scraptown | Visited CR-KLE's Repair Center 2456 | -8/Scraptown | CR-KLE repaired 18 parts 2604 | -8/Scraptown | Visited Symbiants 2649 | -8/Scraptown | Visited UFD Registry 2649 | -8/Scraptown | Registered with UFD as "Matrixframe" 2669 | -8/Scraptown | Visited TADAMA 2693 | -8/Scraptown | Visited Science Testing Area 2851 | -8/Scraptown | Visited Abandonware Association 2857 | -8/Scraptown | Learned abandonware demo "HACKBUD.EXE" 2878 | -8/Scraptown | Visited Science Guys 2899 | -8/Scraptown | Visited Junk Repository 2930 | -8/Scraptown | Delivered Scrap Shield to a Scientist 2980 | -8/Scraptown | Visited Derelict Rescue Squad 2994 | -8/Scraptown | Visited Scrap Suit Storage 3001 | -8/Scraptown | Found Scrap Suit 3017 | -8/Scraptown | Visited DA-N13 Charitable Foundation 3023 | -8/Scraptown | Found DCF Scrap (33 items) 3036 | -8/Scraptown | Visited LU-1G1's Boring Crew 3056 | -8/Scraptown | Visited Cartography Club 3086 | -8/Scraptown | Learned location of Recycling (-8) 3086 | -8/Scraptown | Learned 12 Materials zone layouts 3086 | -8/Scraptown | Learned 16 Factory zone layouts 3086 | -8/Scraptown | Learned 12 Research zone layouts 3086 | -8/Scraptown | Learned 4 Access zone layouts 3086 | -8/Scraptown | Learned 4 Recycling zone layouts 3086 | -8/Scraptown | Learned 12 Lower Caves zone layouts 3086 | -8/Scraptown | Learned 8 Proximity Caves zone layouts 3086 | -8/Scraptown | Learned 16 Proximity Caves zone layouts 3086 | -8/Scraptown | Learned Factory emergency access door positions 3086 | -8/Scraptown | Learned location of 3 exits from Factory 3086 | -8/Scraptown | Learned location of 1 exit from Lower Caves 3086 | -8/Scraptown | Identified exit to Factory 3126 | -8/Scraptown | Visited Observation Area 3143 | -8/Scraptown | Visited Analyses Database 3202 | -8/Scraptown | Visited Comm Corps 3231 | -8/Scraptown | Visited Bundlers 3359 | -8/Scraptown | Met Optimus 3359 | -8/Scraptown | Accepted into 0bPrime 3565 | -8/Scraptown | Civil war broke out across Scraptown 3569 | -8/Scraptown | Entered Factory 3570 | -6/Factory | Identified exit to Factory 3570 | -6/Factory | Identified exit to Lower Caves 3571 | -6/Factory | Reached level 4 3632 | -6/Factory | Reached level 5 3892 | -6/Factory | Reached level 6 3979 | -6/Factory | Fabricated Imp. Heavy Armor Plating (x1) 4105 | -6/Factory | Reached level 7 4163 | -6/Factory | Build established: Wizard-Scout 4214 | -6/Factory | Sucked down chute 4214 | -6/Factory | Entered Waste 4215 | -6/Waste | Met a frightened Derelict 4220 | -6/Waste | Spotted C-40 Crusher 4229 | -6/Waste | EMP discharged 4229 | -6/Waste | Destroyed C-40 Crusher 4252 | -6/Waste | Spotted C-40 Crusher 4271 | -6/Waste | Destroyed C-40 Crusher 4284 | -6/Waste | Spotted C-40 Crusher 4297 | -6/Waste | Destroyed C-40 Crusher 4301 | -6/Waste | Spotted C-40 Crusher 4310 | -6/Waste | Destroyed C-40 Crusher 4329 | -6/Waste | EMP discharged 4329 | -6/Waste | System corruption reached 10% 4341 | -6/Waste | Spotted C-40 Crusher 4356 | -6/Waste | Spotted C-40 Crusher 4390 | -6/Waste | Discovered new exit (range 12) 4394 | -6/Waste | Identified exit to Factory 4394 | -6/Waste | Entered Factory 4535 | -6/Factory | Fabricated Imp. Heavy Armor Plating (x1) 4655 | -6/Factory | Reached level 8 4708 | -6/Factory | Discovered exit to Factory (range 7) 4732 | -6/Factory | Reached level 9 4843 | -6/Factory | Ran an X-ray algorithm 4853 | -6/Factory | Ran an X-ray algorithm 4910 | -6/Factory | Reached level 10 5051 | -6/Factory | Discovered exit to Factory (range 21) 5051 | -6/Factory | Discovered exit to Lower Caves (range 36) 5094 | -6/Factory | First assault squad dispatched 5164 | -6/Factory | Reached level 11 5200 | -6/Factory | Fabricated Imp. Heavy Armor Plating (x1) 5297 | -6/Factory | Spotted B-75 Beast 5311 | -6/Factory | Destroyed B-75 Beast 5428 | -6/Factory | Entered Lower Caves 5429 | -6/Lower Caves | Identified exit to Lower Caves 5430 | -6/Lower Caves | UFD Scientist delivered a prototype 5430 | -6/Lower Caves | Attracted the attention of an 0b10 outpost 5430 | -6/Lower Caves | Reached level 12 5487 | -6/Lower Caves | Found Prototype Protection 5487 | -6/Lower Caves | Identified Enh. Scrap Shield 5493 | -6/Lower Caves | Destroyed 8 combat bots 5565 | -6/Lower Caves | Learned location of 1 exit from Proximity Caves 5574 | -6/Lower Caves | Attracted the attention of an 0b10 checkpoint 5673 | -6/Lower Caves | Reached level 13 5741 | -6/Lower Caves | Encountered a Warlord checkpoint 5777 | -6/Lower Caves | Entered another Lower Caves area 5823 | -6/Lower Caves | Discovered exit to Factory (range 10) 5876 | -6/Lower Caves | Reached level 14 5933 | -6/Lower Caves | Crushed by falling debris 5935 | -6/Lower Caves | Crushed by falling debris 5936 | -6/Lower Caves | Encountered a Warlord checkpoint 5937 | -6/Lower Caves | Learned 12 Factory zone layouts 5988 | -6/Lower Caves | Murdered 4 allies 6004 | -6/Lower Caves | Discovered new exit (range 2) 6006 | -6/Lower Caves | Identified exit to Data Miner 6007 | -6/Lower Caves | Entered Data Miner 6007 | -6/Data Miner | Discovered new exit (range 6) 6008 | -6/Data Miner | Met Data Miner 6018 | -6/Data Miner | Data Conduit disabled 6123 | -6/Data Miner | Identified exit to Proximity Caves 6123 | -6/Data Miner | Entered Proximity Caves 6125 | -5/Proximity Caves | Reached level 15 6128 | -5/Proximity Caves | Spotter reported a threat 6166 | -5/Proximity Caves | Attracted the attention of an 0b10 checkpoint 6203 | -5/Proximity Caves | Learned location of 1 exit from Factory 6213 | -5/Proximity Caves | Unaware initiated a cargo recovery operation 6221 | -5/Proximity Caves | Encountered a Derelict guarding a broken Freighter 6224 | -5/Proximity Caves | Learned Factory terminal intel 6315 | -5/Proximity Caves | Spotted B-75 Beast 6325 | -5/Proximity Caves | Destroyed B-75 Beast 6420 | -5/Proximity Caves | Reached level 16 6441 | -5/Proximity Caves | Destroyed 9 combat bots 6525 | -5/Proximity Caves | Entered Factory 6526 | -5/Factory | Identified exit to Factory 6527 | -5/Factory | Identified exit to Upper Caves 6527 | -5/Factory | Reached level 17 6528 | -5/Factory | Loaded intel: 28 terminal locations 6690 | -5/Factory | Reached level 18 6769 | -5/Factory | Garrison activated, responded to threat 6776 | -5/Factory | Reached level 19 6986 | -5/Factory | Fabricated Linear Accelerator (x2) 7075 | -5/Factory | Reached level 20 7125 | -5/Factory | First assault squad dispatched 7161 | -5/Factory | Destroyed 9 combat bots 7221 | -5/Factory | Fabricated Linear Accelerator (x2) 7243 | -5/Factory | Discovered new exit (range 26) 7254 | -5/Factory | Identified exit to Extension 7254 | -5/Factory | Entered Extension 7271 | -5/Extension | Reached level 21 7304 | -5/Extension | Rescued a captive Derelict 7306 | -5/Extension | Rescued a captive Derelict 7317 | -5/Extension | Rescued a captive Derelict 7400 | -5/Extension | Spotted B-75 Beast 7494 | -5/Extension | Rescued a captive Derelict 7504 | -5/Extension | Disrupted transfer network 7524 | -5/Extension | Spotted B-75 Beast 7553 | -5/Extension | Destroyed B-75 Beast 7554 | -5/Extension | First assault squad dispatched 7557 | -5/Extension | Lost 3 allies 7562 | -5/Extension | Destroyed B-75 Beast 7583 | -5/Extension | Destroyed 7 combat bots 7623 | -5/Extension | Identified exit to Cetus 7645 | -5/Extension | Rescued A7 7669 | -5/Extension | Reached level 22 7716 | -5/Extension | Rescued a captive Derelict 7717 | -5/Extension | Rescued a captive Derelict 7778 | -5/Extension | Disrupted transfer network 7787 | -5/Extension | Entered Cetus 7787 | -5/Cetus | Accompanied by 3 allies (A7) 7787 | -5/Cetus | Spotted Cetus Guard 7787 | -5/Cetus | Spotted Cetus Guard 7787 | -5/Cetus | Spotted Cetus Guard 7787 | -5/Cetus | Spotted Cetus Guard 7792 | -5/Cetus | Acquired a Cetus Manufacturing Module code from A7 7796 | -5/Cetus | Destroyed Cetus Guard 7800 | -5/Cetus | Destroyed Cetus Guard 7805 | -5/Cetus | Allies destroyed Cetus Guard 7808 | -5/Cetus | Destroyed Cetus Guard 7814 | -5/Cetus | Discovered exit to Factory (range 37) 7829 | -5/Cetus | System corruption reached 10% 7887 | -5/Cetus | Started Cetus Manufacturing Module 7912 | -5/Cetus | Manufactured an Enhanced Grunt 7937 | -5/Cetus | Manufactured an Enhanced Grunt 7962 | -5/Cetus | Manufactured an Enhanced Grunt 7974 | -5/Cetus | Murdered A7 7987 | -5/Cetus | Manufactured an Enhanced Grunt 7989 | -5/Cetus | Extracted ID and sensor layout for unrecognized location from A7's data core 8012 | -5/Cetus | Manufactured an Enhanced Grunt 8081 | -5/Cetus | Found a strange terminal 8115 | -5/Cetus | Build established: Wizard-Executioner 8153 | -5/Cetus | Discovered new exit (range 25) 8183 | -5/Cetus | Discovered exit to Factory (range 38) 8183 | -5/Cetus | Spotted Cetus Guard 8183 | -5/Cetus | Spotted Cetus Guard 8184 | -5/Cetus | Spotted Cetus Guard 8184 | -5/Cetus | Spotted Cetus Guard 8194 | -5/Cetus | Identified exit to Archives 8205 | -5/Cetus | Entered Archives 8205 | -5/Archives | Accompanied by 7 allies 8233 | -5/Archives | Discovered exit to Factory (range 19) 8233 | -5/Archives | Discovered new exit (range 24) 8248 | -5/Archives | Unable to access archive contents 8259 | -5/Archives | Discovered new exit (range 23) 8265 | -5/Archives | Unable to access archive contents 8277 | -5/Archives | Unable to access archive contents 8405 | -5/Archives | Identified exit to Hub_04(d) 8421 | -5/Archives | Entered Hub_04(d) 8421 | -5/Hub_04(d) | Accompanied by 6 allies 8423 | -5/Hub_04(d) | Reached level 23 8704 | -5/Hub_04(d) | Discovered exit to Factory (range 15) 8815 | -5/Hub_04(d) | Reached level 24 8851 | -5/Hub_04(d) | Discovered exit to Factory (range 10) 8959 | -5/Hub_04(d) | Network Hub disabled 8979 | -5/Hub_04(d) | Spotted Lightning 8979 | -5/Hub_04(d) | Spotted Lightning 8980 | -5/Hub_04(d) | Spotted Lightning 8994 | -5/Hub_04(d) | Destroyed Lightning 9016 | -5/Hub_04(d) | Lost 5 allies 9021 | -5/Hub_04(d) | First assault squad dispatched 9024 | -5/Hub_04(d) | Destroyed Lightning 9052 | -5/Hub_04(d) | Spotted Lightning 9052 | -5/Hub_04(d) | Destroyed Lightning 9052 | -5/Hub_04(d) | Spotted Lightning 9054 | -5/Hub_04(d) | Spotted Lightning 9064 | -5/Hub_04(d) | Network Hub disabled 9065 | -5/Hub_04(d) | System corruption reached 30% 9078 | -5/Hub_04(d) | Destroyed Lightning 9083 | -5/Hub_04(d) | High security lockdown imminent 9083 | -5/Hub_04(d) | Destroyed Lightning 9098 | -5/Hub_04(d) | Destroyed Lightning 9123 | -5/Hub_04(d) | Discovered exit to Factory (range 18) 9128 | -5/Hub_04(d) | Discovered exit to Factory (range 15) 9151 | -5/Hub_04(d) | Lost 4 parts (3u1w) 9163 | -5/Hub_04(d) | High security lockdown engaged 9227 | -5/Hub_04(d) | Garrison activated, responded to threat 9274 | -5/Hub_04(d) | Core integrity fell below 50% 9293 | -5/Hub_04(d) | Build established: Wizard-Scout 9321 | -5/Hub_04(d) | Destroyed 18 combat bots 9354 | -5/Hub_04(d) | Entered Factory 9355 | -4/Factory | Identified exit to Research 9357 | -4/Factory | Lost 6 parts (2u4w) 9367 | -4/Factory | Identified exit to DSF 9380 | -4/Factory | Identified exit to Upper Caves 9427 | -4/Factory | Fabricated Imp. Heavy Armor Plating (x1) 9460 | -4/Factory | Reached level 25 9567 | -4/Factory | Ran an X-ray algorithm 9580 | -4/Factory | Spotted B-86 Titan 9630 | -4/Factory | Discovered exit to Research (range 23) 9730 | -4/Factory | Destroyed B-86 Titan 9777 | -4/Factory | Build established: Wizard-Executioner 9854 | -4/Factory | First assault squad dispatched 9914 | -4/Factory | Fabricated Imp. Heavy Armor Plating? 9954 | -4/Factory | Reached level 26 10022 | -4/Factory | Destroyed 13 combat bots 10245 | -4/Factory | High security lockdown imminent 10325 | -4/Factory | High security lockdown engaged 10670 | -4/Factory | Reached level 27 10727 | -4/Factory | Destroyed 12 combat bots 10836 | -4/Factory | Destroyed 8 combat bots 10936 | -4/Factory | Destroyed 19 combat bots 11052 | -4/Factory | Destroyed 17 combat bots 11118 | -4/Factory | Sterilization system engaged 11118 | -4/Factory | Non-combat units ordered to evacuate 11132 | -4/Factory | Destroyed 14 combat bots 11147 | -4/Factory | Reached level 28 11218 | -4/Factory | Combat units ordered to evacuate 11418 | -4/Factory | Ambient heat levels rising (+10) 11568 | -4/Factory | Ambient heat levels rising (+10) 11718 | -4/Factory | Ambient heat levels rising (+10) 11868 | -4/Factory | Ambient heat levels rising (+10) 12018 | -4/Factory | Ambient heat levels rising (+10) 12035 | -4/Factory | Entered Upper Caves 12154 | -4/Upper Caves | Attracted the attention of an 0b10 checkpoint 12264 | -4/Upper Caves | Attracted the attention of an 0b10 outpost 12323 | -4/Upper Caves | Destroyed 9 combat bots 12378 | -4/Upper Caves | Discovered new exit (range 5) 12467 | -4/Upper Caves | Encountered a Warlord checkpoint 13090 | -4/Upper Caves | Entered another Upper Caves area 13090 | -4/Upper Caves | Accompanied by 3 allies 13122 | -4/Upper Caves | Discovered exit to Research (range 23) 13253 | -4/Upper Caves | Learned location of 1 exit from Research 13330 | -4/Upper Caves | Discovered new exit (range 10) 13340 | -4/Upper Caves | Identified exit to Zhirov 13342 | -4/Upper Caves | Entered Zhirov 13342 | -4/Zhirov | Discovered new exit (range 3) 13356 | -4/Zhirov | Met Zhirov 13371 | -4/Zhirov | Learned location of Testing (-3) 13371 | -4/Zhirov | Learned location of Command (-1) 13380 | -4/Zhirov | Zhirov requested help retrieving the SGEMP Prototype 13391 | -4/Zhirov | Found Alien Artifact 13391 | -4/Zhirov | Identified Integrated Dissipator 13391 | -4/Zhirov | Installed Integrated Dissipator, increased core heat dissipation (+20) 13412 | -4/Zhirov | Found Alien Artifact 13412 | -4/Zhirov | Identified Transdimensional Reconstructor 13412 | -4/Zhirov | Warped through subspace 13425 | -4/Zhirov | Identified exit to Proximity Caves 13426 | -4/Zhirov | Entered Proximity Caves 13452 | -3/Proximity Caves | Build established: Wizard-Scout 13561 | -3/Proximity Caves | Destroyed 7 combat bots 13657 | -3/Proximity Caves | Attracted the attention of an 0b10 checkpoint 13787 | -3/Proximity Caves | Reached level 29 14078 | -3/Proximity Caves | Entered Research 14079 | -3/Research | Identified exit to Research 14081 | -3/Research | Loaded intel: 77 non-interactive machine locations 14409 | -3/Research | Destroyed 10 combat bots 14464 | -3/Research | Identified exit to Armory 14464 | -3/Research | Identified exit to Testing 14466 | -3/Research | Spotted B-86 Titan 14481 | -3/Research | Destroyed B-86 Titan 14579 | -3/Research | Found Unknown Device 14579 | -3/Research | Identified Quantum Capacitor 14680 | -3/Research | Discovered exit to Research (range 11) 14684 | -3/Research | Entered Armory 14686 | -3/Armory | Reached level 30 14735 | -3/Armory | Fabricated Imp. Heavy Armor Plating (x1) 14821 | -3/Armory | Destroyed 8 combat bots 15081 | -3/Armory | Found Unknown Device 15081 | -3/Armory | Identified Adv. Force Booster 15316 | -3/Armory | Destroyed 9 combat bots 15611 | -3/Armory | Build established: Wizard-Executioner 15956 | -3/Armory | Build established: Wizard-Scout 16015 | -3/Armory | Spotted B-86 Titan 16029 | -3/Armory | Discovered new exit (range 22) 16067 | -3/Armory | Identified exit to Lab 16068 | -3/Armory | Entered Lab 16068 | -3/Lab | Discovered exit to Research (range 9) 16070 | -3/Lab | Reached level 31 16072 | -3/Lab | Hidden lab's door opened automatically 16072 | -3/Lab | Sensor layout match revealed 16073 | -3/Lab | Gained access to the hidden lab's interior 16073 | -3/Lab | Unable to decrypt terminal 16073 | -3/Lab | Detected by scanners 16075 | -3/Lab | Unable to decrypt terminal 16081 | -3/Lab | Confronted by A5 16101 | -3/Lab | Destroyed A5 16120 | -3/Lab | Found Prototype Special Weapon 16120 | -3/Lab | Identified Gui. Remote Datajack 16135 | -3/Lab | Found Prototype Protection 16135 | -3/Lab | Identified Med. Regenerative Plating 16141 | -3/Lab | Found Prototype Energy Gun 16141 | -3/Lab | Identified Tachyon Dispersion Ray 16143 | -3/Lab | Found Prototype Energy Gun 16143 | -3/Lab | Identified Hyp. EM Gauss Rifle 16151 | -3/Lab | Unable to decrypt terminal 16168 | -3/Lab | Unable to decrypt terminal 16170 | -3/Lab | Found Alien Artifact 16170 | -3/Lab | Identified LC Capacitor 16186 | -3/Lab | Found Prototype Hackware 16186 | -3/Lab | Identified Quantum Router 16200 | -3/Lab | Found Transdimensional Reconstructor 16205 | -3/Lab | Found Alien Artifact 16205 | -3/Lab | Identified Core Reset Matrix 16205 | -3/Lab | Used Core Reset Matrix 16209 | -3/Lab | Sensed 2 artifacts in vicinity 16215 | -3/Lab | Found Integrated Reactor 16215 | -3/Lab | Installed Integrated Reactor, increased core energy generation (+10) 16223 | -3/Lab | Found Core Regenerator 16223 | -3/Lab | Used Core Regenerator, restored core integrity (+3853) 16230 | -3/Lab | Discovered exit to Research (range 22) 16234 | -3/Lab | Unable to decrypt terminal 16242 | -3/Lab | Unable to decrypt terminal 16284 | -3/Lab | Entered Research 16320 | -2/Research | Spotted B-90 Cyclops 16322 | -2/Research | Destroyed B-90 Cyclops 16416 | -2/Research | Spotted B-90 Cyclops 16423 | -2/Research | Destroyed B-90 Cyclops 16448 | -2/Research | Intercept squad dispatched 16464 | -2/Research | Spotted Tracker 16465 | -2/Research | Spotted Combat Programmer 16465 | -2/Research | Destroyed Tracker 16465 | -2/Research | Spotted Tracker 16469 | -2/Research | Reached level 32 16469 | -2/Research | Destroyed Tracker 16474 | -2/Research | Destroyed Combat Programmer 16521 | -2/Research | Garrison activated, responded to threat 16536 | -2/Research | Spotted Combat Programmer 16538 | -2/Research | Destroyed Combat Programmer 16557 | -2/Research | Spotted B-90 Cyclops 16677 | -2/Research | Destroyed 7 combat bots 16692 | -2/Research | Destroyed B-90 Cyclops 16740 | -2/Research | Destroyed 7 combat bots 16828 | -2/Research | Discovered new exit (range 14) 16841 | -2/Research | Identified exit to Quarantine 16848 | -2/Research | Entered Quarantine 16849 | -2/Quarantine | Detected hypermatrix surge 16849 | -2/Quarantine | Sensed 13 artifacts in vicinity 16894 | -2/Quarantine | Found Core Cannon 16916 | -2/Quarantine | Found Core Stripper 16931 | -2/Quarantine | Found Sigix Broadsword 16963 | -2/Quarantine | Met incapacitated Sigix Warrior 16963 | -2/Quarantine | Lockdown squad dispatched 16963 | -2/Quarantine | Reached level 33 16967 | -2/Quarantine | Acquired the access code to the Sigix quarantine chamber 16980 | -2/Quarantine | Found Sigix Containment Pod 16988 | -2/Quarantine | Spotted Lightning 16988 | -2/Quarantine | Spotted Lightning 16988 | -2/Quarantine | Spotted Lightning 16988 | -2/Quarantine | Destroyed Lightning 16992 | -2/Quarantine | Garrison activated, responded to threat 16992 | -2/Quarantine | Destroyed Lightning 17001 | -2/Quarantine | System corruption reached 10% 17004 | -2/Quarantine | Destroyed Lightning 17054 | -2/Quarantine | Found Dimensional Node Initializer 17073 | -2/Quarantine | Found Transdimensional Reconstructor 17093 | -2/Quarantine | Discovered new exit (range 23) 17098 | -2/Quarantine | Cryocooling Duct disabled 17113 | -2/Quarantine | Ambient heat levels rising (+20) 17113 | -2/Quarantine | Non-combat units ordered to evacuate 17267 | -2/Quarantine | Intercept squad dispatched 17267 | -2/Quarantine | Spotted Combat Programmer 17267 | -2/Quarantine | Spotted Tracker 17267 | -2/Quarantine | Spotted Tracker 17267 | -2/Quarantine | Spotted Combat Programmer 17299 | -2/Quarantine | Destroyed Tracker 17303 | -2/Quarantine | Destroyed Combat Programmer 17307 | -2/Quarantine | Warped through subspace 17348 | -2/Quarantine | Destroyed Combat Programmer 17454 | -2/Quarantine | Destroyed Tracker 17497 | -2/Quarantine | Identified exit to Access 17600 | -2/Quarantine | Spotted Fortress 17605 | -2/Quarantine | Destroyed Fortress 17624 | -2/Quarantine | Found Prototype Protection 17624 | -2/Quarantine | Identified Centrium Heavy Armor Plating 17635 | -2/Quarantine | Found Prototype Device 17635 | -2/Quarantine | Identified Thermal Barrier 17664 | -2/Quarantine | Discovered new exit (range 6) 17664 | -2/Quarantine | Discovered new exit (range 6) 17666 | -2/Quarantine | Identified exit to Protoforge 17668 | -2/Quarantine | Identified exit to Section 7 17669 | -2/Quarantine | Entered Protoforge 17669 | -2/Protoforge | Spotted Hotshot 17669 | -2/Protoforge | Spotted Hotshot 17670 | -2/Protoforge | Sensed 2 artifacts in vicinity 17694 | -2/Protoforge | Superfortress began startup sequence 17711 | -2/Protoforge | Spotted Hotshot 17715 | -2/Protoforge | Spotted Hotshot 17715 | -2/Protoforge | Destroyed Hotshot 17719 | -2/Protoforge | Spotted Hotshot 17735 | -2/Protoforge | Destroyed Hotshot 17755 | -2/Protoforge | Destroyed Hotshot 17776 | -2/Protoforge | Destroyed 8 combat bots 17824 | -2/Protoforge | Spotted Hotshot 17992 | -2/Protoforge | Spotted Hotshot 18006 | -2/Protoforge | Spotted Decapitator 18008 | -2/Protoforge | Spotted Decapitator 18012 | -2/Protoforge | Spotted Decapitator 18018 | -2/Protoforge | Spotted Decapitator 18021 | -2/Protoforge | Spotted Decapitator 18072 | -2/Protoforge | Destroyed 7 combat bots 18075 | -2/Protoforge | Destroyed Decapitator 18089 | -2/Protoforge | Destroyed Decapitator 18095 | -2/Protoforge | Destroyed Decapitator 18107 | -2/Protoforge | Destroyed Decapitator 18113 | -2/Protoforge | Destroyed Decapitator 18130 | -2/Protoforge | System corruption reached 30% 18139 | -2/Protoforge | Spotted Hotshot 18143 | -2/Protoforge | Spotted Hotshot 18147 | -2/Protoforge | Destroyed 7 combat bots 18160 | -2/Protoforge | Destroyed Hotshot 18167 | -2/Protoforge | Reached level 34 18167 | -2/Protoforge | Destroyed Hotshot 18181 | -2/Protoforge | Destroyed Hotshot 18188 | -2/Protoforge | Destroyed Hotshot 18201 | -2/Protoforge | Destroyed Hotshot 18205 | -2/Protoforge | Spotted Overlord 18212 | -2/Protoforge | Destroyed Hotshot 18235 | -2/Protoforge | Destroyed Overlord 18267 | -2/Protoforge | Destroyed 14 combat bots 18296 | -2/Protoforge | Spotted Hotshot 18296 | -2/Protoforge | Spotted AP7-3 18296 | -2/Protoforge | Spotted Hotshot 18313 | -2/Protoforge | Spotted AP7-3 18440 | -2/Protoforge | Destroyed 14 combat bots 18444 | -2/Protoforge | Intercept squad dispatched 18452 | -2/Protoforge | Spotted Tracker 18452 | -2/Protoforge | Spotted Tracker 18456 | -2/Protoforge | Destroyed Tracker 18464 | -2/Protoforge | Spotted Combat Programmer 18468 | -2/Protoforge | Destroyed Tracker 18488 | -2/Protoforge | Destroyed Combat Programmer 18490 | -2/Protoforge | Spotted Combat Programmer 18493 | -2/Protoforge | Destroyed Combat Programmer 18513 | -2/Protoforge | Found Prototype Ballistic Gun 18513 | -2/Protoforge | Identified Cep. XC Strikerail 18519 | -2/Protoforge | Found Prototype Device 18519 | -2/Protoforge | Identified Exp. Trap Extractor 18571 | -2/Protoforge | Spotted Hotshot 18589 | -2/Protoforge | Spotted B-90 Cyclops 18612 | -2/Protoforge | Destroyed B-90 Cyclops 18612 | -2/Protoforge | Destroyed Hotshot 18616 | -2/Protoforge | Destroyed Hotshot 18616 | -2/Protoforge | Destroyed Hotshot 18664 | -2/Protoforge | Intercept squad dispatched 18686 | -2/Protoforge | Spotted Tracker 18687 | -2/Protoforge | Spotted Tracker 18687 | -2/Protoforge | Destroyed Tracker 18691 | -2/Protoforge | Destroyed Tracker 18714 | -2/Protoforge | Spotted Combat Programmer 18715 | -2/Protoforge | Spotted Combat Programmer 18750 | -2/Protoforge | Destroyed Combat Programmer 18757 | -2/Protoforge | Destroyed AP7-3 18782 | -2/Protoforge | Destroyed AP7-3 18811 | -2/Protoforge | Spotted SKR-2 18811 | -2/Protoforge | Spotted SKR-2 18811 | -2/Protoforge | Spotted SKR-2 18811 | -2/Protoforge | Spotted EXE-6 18811 | -2/Protoforge | Spotted EXE-6 18812 | -2/Protoforge | Spotted EXE-6 18831 | -2/Protoforge | Spotted EXE-6 18851 | -2/Protoforge | Destroyed Combat Programmer 18885 | -2/Protoforge | Destroyed EXE-6 18887 | -2/Protoforge | Destroyed EXE-6 18908 | -2/Protoforge | Destroyed SKR-2 18915 | -2/Protoforge | Destroyed SKR-2 18924 | -2/Protoforge | Destroyed SKR-2 19099 | -2/Protoforge | Found Exp. Trap Extractor 19144 | -2/Protoforge | Intercept squad dispatched 19153 | -2/Protoforge | Spotted Tracker 19154 | -2/Protoforge | Spotted Tracker 19158 | -2/Protoforge | Destroyed Tracker 19162 | -2/Protoforge | Destroyed Tracker 19198 | -2/Protoforge | Spotted Combat Programmer 19198 | -2/Protoforge | Spotted Combat Programmer 19203 | -2/Protoforge | Destroyed 8 combat bots 19210 | -2/Protoforge | Destroyed Combat Programmer 19220 | -2/Protoforge | Destroyed Combat Programmer 19396 | -2/Protoforge | Spotted Immortal 19401 | -2/Protoforge | Spotted Immortal 19419 | -2/Protoforge | First assault squad dispatched 19457 | -2/Protoforge | Destroyed Immortal 19499 | -2/Protoforge | Destroyed 8 combat bots 19535 | -2/Protoforge | Spotted Immortal 19561 | -2/Protoforge | Spotted V353-s 19586 | -2/Protoforge | Destroyed Immortal 19592 | -2/Protoforge | Spotted Decapitator 19592 | -2/Protoforge | Spotted V496-e 19593 | -2/Protoforge | Spotted Decapitator 19613 | -2/Protoforge | Found Prototype Device 19613 | -2/Protoforge | Identified Cep. Matter Streamer 19616 | -2/Protoforge | Found Prototype Storage 19616 | -2/Protoforge | Identified Cep. Chromion Battery 19624 | -2/Protoforge | Found Prototype Storage 19624 | -2/Protoforge | Identified Cep. NT7 Matterbank 19639 | -2/Protoforge | Garrison activated, responded to threat 19640 | -2/Protoforge | Core integrity fell below 50% 19677 | -2/Protoforge | Destroyed Decapitator 19681 | -2/Protoforge | Destroyed Decapitator 19690 | -2/Protoforge | Scanned by Researcher 19691 | -2/Protoforge | Destroyed V496-e 19699 | -2/Protoforge | Destroyed V353-s 19715 | -2/Protoforge | Reached level 35 19763 | -2/Protoforge | Found Cep. Matter Streamer 19764 | -2/Protoforge | Intercept squad dispatched 19766 | -2/Protoforge | Spotted Tracker 19768 | -2/Protoforge | Destroyed Tracker 19769 | -2/Protoforge | Spotted Tracker 19769 | -2/Protoforge | Spotted Tracker 19772 | -2/Protoforge | Destroyed Tracker 19776 | -2/Protoforge | Destroyed Tracker 19779 | -2/Protoforge | Spotted Combat Programmer 19780 | -2/Protoforge | Destroyed Combat Programmer 19785 | -2/Protoforge | Spotted Combat Programmer 19787 | -2/Protoforge | Spotted Combat Programmer 19790 | -2/Protoforge | Destroyed Combat Programmer 19794 | -2/Protoforge | Destroyed Combat Programmer 19815 | -2/Protoforge | Destroyed 20 combat bots 19817 | -2/Protoforge | Forge Plexus network access discovered 19819 | -2/Protoforge | Spotted Decapitator 19820 | -2/Protoforge | Spotted Decapitator 19821 | -2/Protoforge | Spotted Decapitator 19898 | -2/Protoforge | Spotted Immortal 19898 | -2/Protoforge | Spotted Immortal 19928 | -2/Protoforge | Spotted V689-d 19928 | -2/Protoforge | Spotted V971-t 19928 | -2/Protoforge | Spotted V265-x 19928 | -2/Protoforge | Spotted V240-p 19936 | -2/Protoforge | Destroyed 16 combat bots 19951 | -2/Protoforge | Found Cep. Zero-point Core 19979 | -2/Protoforge | Spotted Decapitator 19979 | -2/Protoforge | Spotted Decapitator 19979 | -2/Protoforge | Spotted Decapitator 19989 | -2/Protoforge | Found Cep. XC Strikerail 19991 | -2/Protoforge | Found Cep. Plasma Driver 19994 | -2/Protoforge | Found Cep. Helical Railcannon 19997 | -2/Protoforge | Found Cep. Miniperforator 19999 | -2/Protoforge | Found Cep. Variable Chargecaster 20001 | -2/Protoforge | Destroyed V265-x 20013 | -2/Protoforge | Destroyed V689-d 20022 | -2/Protoforge | Destroyed Immortal 20028 | -2/Protoforge | Destroyed Immortal 20032 | -2/Protoforge | Destroyed V240-p 20037 | -2/Protoforge | Found Cep. XC Strikerail 20040 | -2/Protoforge | Found Cep. Variable Chargecaster 20056 | -2/Protoforge | Found Prototype Device 20056 | -2/Protoforge | Identified Exp. Weapon Cycler 20130 | -2/Protoforge | Destroyed 7 combat bots 20145 | -2/Protoforge | Spotted Immortal 20159 | -2/Protoforge | Destroyed Immortal 20185 | -2/Protoforge | Spotted Hotshot 20193 | -2/Protoforge | Spotted Immortal 20195 | -2/Protoforge | Destroyed Hotshot 20200 | -2/Protoforge | Destroyed Immortal 20223 | -2/Protoforge | High security lockdown imminent 20223 | -2/Protoforge | Destroyed Superfortress 20266 | -2/Protoforge | Destroyed 8 combat bots 20273 | -2/Protoforge | Spotted V387-w 20283 | -2/Protoforge | Destroyed V387-w 20287 | -2/Protoforge | Found Prototype Processor 20287 | -2/Protoforge | Identified Exp. Core Analyzer 20288 | -2/Protoforge | Found Exp. Armor Integrity Analyzer 20298 | -2/Protoforge | Found Cep. Smart ZDS 20303 | -2/Protoforge | High security lockdown engaged 20305 | -2/Protoforge | Found Cep. Rapid Grenade Launcher 20318 | -2/Protoforge | Spotted Decapitator 20321 | -2/Protoforge | Destroyed Decapitator 20327 | -2/Protoforge | Intercept squad dispatched 20335 | -2/Protoforge | Spotted V812-d 20356 | -2/Protoforge | Spotted V144-l 20356 | -2/Protoforge | Spotted V340-d 20359 | -2/Protoforge | Destroyed V340-d 20360 | -2/Protoforge | Destroyed V144-l 20363 | -2/Protoforge | Spotted Immortal 20363 | -2/Protoforge | Spotted Immortal 20364 | -2/Protoforge | Spotted Tracker 20365 | -2/Protoforge | Spotted Tracker 20367 | -2/Protoforge | Spotted Tracker 20368 | -2/Protoforge | Spotted Tracker 20370 | -2/Protoforge | Destroyed Tracker 20370 | -2/Protoforge | Destroyed Tracker 20370 | -2/Protoforge | Destroyed Tracker 20373 | -2/Protoforge | Destroyed Tracker 20417 | -2/Protoforge | Destroyed Immortal 20421 | -2/Protoforge | Destroyed Immortal 20429 | -2/Protoforge | Found Exp. Active Sensor Suite 20449 | -2/Protoforge | Spotted Combat Programmer 20449 | -2/Protoforge | Destroyed Combat Programmer 20450 | -2/Protoforge | Spotted Combat Programmer 20452 | -2/Protoforge | Destroyed Combat Programmer 20453 | -2/Protoforge | Spotted Combat Programmer 20454 | -2/Protoforge | Destroyed Combat Programmer 20458 | -2/Protoforge | Spotted Combat Programmer 20458 | -2/Protoforge | Destroyed Combat Programmer 20462 | -2/Protoforge | Found Exp. Focal Shield 20506 | -2/Protoforge | Spotted AP7-3 20510 | -2/Protoforge | Found Exp. Kinecellerator 20512 | -2/Protoforge | Found Prototype Device 20512 | -2/Protoforge | Identified Cep. Countertargeting System 20517 | -2/Protoforge | Found Cep. Networked Targeting System 20518 | -2/Protoforge | Destroyed 9 combat bots 20520 | -2/Protoforge | Found Cep. Recoil Nullifier 20522 | -2/Protoforge | Spotted AP7-3 20543 | -2/Protoforge | Additional patrols dispatched to research labs 20546 | -2/Protoforge | Found Transdimensional Reconstructor 20553 | -2/Protoforge | Found Cep. Nanofilaments [Conductive] 20553 | -2/Protoforge | Installed Cep. Nanofilaments [Conductive], 2 resistances modified: TH -15%, EM +25% 20580 | -2/Protoforge | Reached level 36 20598 | -2/Protoforge | Destroyed AP7-3 20602 | -2/Protoforge | Destroyed AP7-3 20614 | -2/Protoforge | Found Cld. Directed Potential Cannon 20617 | -2/Protoforge | Found Cep. Cloak Mesh 20620 | -2/Protoforge | Found Cld. Directed Potential Cannon 20623 | -2/Protoforge | Destroyed 12 combat bots 20700 | -2/Protoforge | Destroyed Decapitator 20700 | -2/Protoforge | Destroyed Decapitator 20700 | -2/Protoforge | Destroyed Decapitator 20714 | -2/Protoforge | Intercept squad dispatched 20722 | -2/Protoforge | Destroyed Decapitator 20725 | -2/Protoforge | Destroyed Decapitator 20747 | -2/Protoforge | Found Exp. Remote Shield 20749 | -2/Protoforge | Spotted Tracker 20750 | -2/Protoforge | Spotted Tracker 20751 | -2/Protoforge | Destroyed Tracker 20753 | -2/Protoforge | Spotted Tracker 20755 | -2/Protoforge | Spotted Tracker 20759 | -2/Protoforge | Destroyed Tracker 20768 | -2/Protoforge | Destroyed Tracker 20768 | -2/Protoforge | Destroyed Tracker 20783 | -2/Protoforge | Spotted V779-x 20789 | -2/Protoforge | Destroyed 8 combat bots 20806 | -2/Protoforge | Destroyed V779-x 20827 | -2/Protoforge | Spotted Combat Programmer 20829 | -2/Protoforge | Destroyed Combat Programmer 20830 | -2/Protoforge | Spotted Combat Programmer 20831 | -2/Protoforge | Spotted Combat Programmer 20831 | -2/Protoforge | Destroyed Combat Programmer 20832 | -2/Protoforge | Spotted Combat Programmer 20842 | -2/Protoforge | Destroyed Combat Programmer 20844 | -2/Protoforge | Destroyed Combat Programmer 20860 | -2/Protoforge | Found Crosscalibrator 20871 | -2/Protoforge | Found Faulty Cep. Helical Railcannon 20873 | -2/Protoforge | Found Faulty Cep. Helical Railcannon 20916 | -2/Protoforge | Found Faulty Cep. Heavy Railcannon 20918 | -2/Protoforge | Found Faulty Cep. Heavy Railcannon 20952 | -2/Protoforge | Destroyed Striker 20966 | -2/Protoforge | Spotted Striker 20968 | -2/Protoforge | Destroyed Striker 20978 | -2/Protoforge | Spotted Striker 20981 | -2/Protoforge | Destroyed Executioner 20985 | -2/Protoforge | Destroyed Striker 21013 | -2/Protoforge | Destroyed Executioner 21070 | -2/Protoforge | Destroyed 37 combat bots 21074 | -2/Protoforge | Spotted Investigator 21077 | -2/Protoforge | Destroyed Investigator 21171 | -2/Protoforge | Intercept squad dispatched 21184 | -2/Protoforge | Spotted Tracker 21184 | -2/Protoforge | Spotted Tracker 21184 | -2/Protoforge | Spotted Tracker 21184 | -2/Protoforge | Spotted Tracker 21185 | -2/Protoforge | Spotted Tracker 21187 | -2/Protoforge | Destroyed Tracker 21187 | -2/Protoforge | Destroyed Tracker 21187 | -2/Protoforge | Destroyed Tracker 21187 | -2/Protoforge | Destroyed Tracker 21190 | -2/Protoforge | Destroyed Tracker 21251 | -2/Protoforge | Spotted Combat Programmer 21253 | -2/Protoforge | Spotted Combat Programmer 21254 | -2/Protoforge | Spotted Combat Programmer 21254 | -2/Protoforge | Destroyed Combat Programmer 21254 | -2/Protoforge | Destroyed Combat Programmer 21257 | -2/Protoforge | Destroyed Combat Programmer 21327 | -2/Protoforge | Spotted Striker 21327 | -2/Protoforge | Spotted Striker 21328 | -2/Protoforge | Destroyed Striker 21329 | -2/Protoforge | Spotted Striker 21329 | -2/Protoforge | Spotted Executioner 21329 | -2/Protoforge | Spotted Striker 21332 | -2/Protoforge | Spotted Executioner 21332 | -2/Protoforge | Spotted Striker 21336 | -2/Protoforge | Spotted Striker 21342 | -2/Protoforge | Core integrity fell below 20% 21346 | -2/Protoforge | Spotted Striker 21346 | -2/Protoforge | Spotted Executioner 21351 | -2/Protoforge | Destroyed Striker 21372 | -2/Protoforge | Entered Access 21373 | -1/Access | Emitted hypermatrix ping 21373 | -1/Access | Core integrity fell below 50% 21373 | -1/Access | Core integrity fell below 20% 21374 | -1/Access | Destroyed 28 combat bots 21378 | -1/Access | Assembled emerged from beneath the floor 21395 | -1/Access | Assembled emerged from beneath the floor 21428 | -1/Access | Assembled emerged from beneath the floor 21436 | -1/Access | Energy Cycler disabled 21441 | -1/Access | Lost 7 allies 21445 | -1/Access | Assembled emerged from beneath the floor 21448 | -1/Access | Identified exit to Surface 21448 | -1/Access | Identified exit to Command 21530 | -1/Access | Spotted B-99 Colossus 21530 | -1/Access | Spotted B-99 Colossus 21530 | -1/Access | Reached level 37 21560 | -1/Access | Assembled emerged from beneath the floor 21567 | -1/Access | Destroyed B-99 Colossus 21577 | -1/Access | Destroyed B-99 Colossus 21590 | -1/Access | Spotted Striker 21596 | -1/Access | Spotted Striker 21598 | -1/Access | Intercept squad dispatched 21599 | -1/Access | Lost 16 allies 21600 | -1/Access | Assembled emerged from beneath the floor 21603 | -1/Access | Spotted Tracker 21604 | -1/Access | Spotted Tracker 21607 | -1/Access | Spotted Executioner 21607 | -1/Access | Spotted B-99 Colossus 21607 | -1/Access | Spotted Executioner 21608 | -1/Access | Spotted Striker 21608 | -1/Access | Spotted Striker 21609 | -1/Access | Destroyed 11 combat bots 21646 | -1/Access | Entered Command 21647 | -1/Command | Emitted hypermatrix ping 21652 | -1/Command | Assembled emerged from beneath the floor 21740 | -1/Command | Lost 3 allies 21791 | -1/Command | Spotted Executioner 21796 | -1/Command | Spotted M Guard 21796 | -1/Command | Spotted M Guard 21796 | -1/Command | Spotted Combat Programmer 21796 | -1/Command | Spotted Combat Programmer 21841 | -1/Command | Destroyed Combat Programmer 21847 | -1/Command | Destroyed Combat Programmer 21850 | -1/Command | Destroyed M Guard 21853 | -1/Command | Destroyed M Guard 21853 | -1/Command | All MAIN.C guards destroyed 21877 | -1/Command | Met MAIN.C 21878 | -1/Command | 0b10 Conduit disabled 21887 | -1/Command | Reached level 38 21887 | -1/Command | Destroyed MAIN.C Shell 21890 | -1/Command | MAIN.C activated Command garrisons 21907 | -1/Command | Destroyed MAIN.C 21913 | -1/Command | Discovered exit to Surface (range 29) 21913 | -1/Command | Discovered exit to Surface (range 95) 21913 | -1/Command | Extracted map data and part IDs from MAIN.C's data core 21935 | -1/Command | Failed to warp due to unstable space 21939 | -1/Command | Warped through subspace to slip node 21939 | -1/Command | Discovered new exit (range 4) 21940 | -1/Command | Identified exit to Access_0 21941 | -1/Command | Entered Access_0 21942 | -1/Access_0 | Sensed 4 artifacts in vicinity 21942 | -1/Access_0 | Met Architect 21947 | -1/Access_0 | Architect warped through subspace 21977 | -1/Access_0 | Destroyed A8 21986 | -1/Access_0 | Architect warped through subspace 22018 | -1/Access_0 | Architect warped through subspace 22040 | -1/Access_0 | Found Hpw. Transdimensional Reconstructor 22044 | -1/Access_0 | Architect warped through subspace 22067 | -1/Access_0 | Architect warped through subspace 22073 | -1/Access_0 | A6 warped into view 22076 | -1/Access_0 | Destroyed A6 22146 | -1/Access_0 | Started Test 138-B, establishing a local singularity 22146 | -1/Access_0 | Singularity Gate disabled 22150 | -1/Access_0 | Architect warped through subspace 22151 | -1/Access_0 | Singularity Gate disabled 22155 | -1/Access_0 | Destroyed A2 22159 | -1/Access_0 | Extracted Singularity Gate Test 138-C access codes from A2's data core 22197 | -1/Access_0 | Architect warped through subspace 22231 | -1/Access_0 | Found Core Regenerator 22231 | -1/Access_0 | Used Core Regenerator, restored core integrity (+4000) 22262 | -1/Access_0 | Architect warped through subspace 22303 | -1/Access_0 | Architect warped through subspace 22315 | -1/Access_0 | A4 warped into view 22321 | -1/Access_0 | Destroyed A4 22345 | -1/Access_0 | Found Integrated Mediator 22345 | -1/Access_0 | Installed Integrated Mediator, increased core attachment efficiency 22351 | -1/Access_0 | Architect warped through subspace 22369 | -1/Access_0 | Found Exp. Thermal Shield 22414 | -1/Access_0 | Found Integrated Dissipator 22414 | -1/Access_0 | Installed Integrated Dissipator, increased core heat dissipation (+20) 22419 | -1/Access_0 | Architect warped through subspace 22434 | -1/Access_0 | Architect warped through subspace 22445 | -1/Access_0 | Subspace Access Node disabled 22449 | -1/Access_0 | Subspace Access Node disabled 22452 | -1/Access_0 | Architect warped through subspace 22466 | -1/Access_0 | Found Point Singularity Launcher 22476 | -1/Access_0 | Architect warped through subspace 22485 | -1/Access_0 | Found Exp. ECM Suite 22488 | -1/Access_0 | Found Tactical Quantum Warhead 22512 | -1/Access_0 | Architect warped through subspace 22540 | -1/Access_0 | Crushed by falling debris 22549 | -1/Access_0 | A3 warped into view 22550 | -1/Access_0 | Destroyed A3 22686 | -1/Access_0 | Architect warped through subspace 22692 | -1/Access_0 | Crushed by falling debris 22702 | -1/Access_0 | Architect warped through subspace 22783 | -1/Access_0 | Architect warped through subspace 22824 | -1/Access_0 | Architect warped through subspace 22856 | -1/Access_0 | Architect warped through subspace 22892 | -1/Access_0 | Subspace Access Node disabled 22900 | -1/Access_0 | Architect warped through subspace 22910 | -1/Access_0 | Reached level 39 22911 | -1/Access_0 | Architect warped through subspace 22920 | -1/Access_0 | Architect warped through subspace 22932 | -1/Access_0 | Architect warped through subspace 22939 | -1/Access_0 | Architect warped through subspace 22939 | -1/Access_0 | Subspace Access Node disabled 23012 | -1/Access_0 | Destroyed Architect 23016 | -1/Access_0 | Extracted unknown sensor trigger ID from Architect's data core 23016 | -1/Access_0 | Found Hpw. Transdimensional Reconstructor 23018 | -1/Access_0 | Warped through subspace to slip node 23018 | -1/Access_0 | Discovered exit to Surface (range 8) 23022 | *** | Destroyed 0b10! Last Messages --------------- 23004_ Quantum Shear penetrates Wall. 23006_ System corrupted: Energy discharge (-66). 23007_ Quantum Shear penetrates Wall. 23008_ Architect regenerates Prototype Protection. 23012_ Plasma Slug penetrates Architect. 23012_ Destroyed Exp. Phase Shifter. 23012_ Architect: "Defeated by a malfunctioning replica of a piece of alien starship?! You've got*fzzt* be kiddi*bzzz*" [Achievement: The Bigger They Are] 23012_ Architect destroyed. 23016_ Acquired data core, extracted unknown sensor trigger ID. 23016_ Acquired Hpw. Transdimensional Reconstructor. 23017_ Dropped Adv. Force Field. 23018_ Warped through subspace, drawn to slip node. 23018_ EXIT=FOUND: SURFACE [Achievement: Just Browsing] [Achievement: Torch] [Achievement: Payload Armed] [Achievement: Victory By Combat] [Achievement: Death Machine] Map ----- +----------------------------------------------------+ | | | | | | | | | | | | | | | | | | | | | | | | | | | | | | | | | ?????????????????????????????????????????????????? | | ?????????????????????????????????????????????????? | | ?????????????????????????????????????????????????? | | ?????????????????????????????????????????????????? | | ?????????????????????????????????????????????????? | | ?????????????????????????????????????????????????? | | ????????????????????????###??????????????????????? | | ???????????????????????## ##?????????????????????? | | ???????????????????????# #?????????????????????? | | ???????????????????????# @ #?????????????????????? | | ??????????????????????## #?????????????????????? | | ??????????????????????# #?????????????????????? | | ??????????????????????# ##?????????????????????? | | ??????????????????????## #?????????????????????? | | ??????????????????????# #?????????????????????? | | ??????????????????????# ##?????????????????????? | | ??????????????????????# ! #?????????????????????? | | ??????????????????????# ##?????????????????????? | | ??????????????????????## #??????????????????????? | | ???????????????????????####??????????????????????? | | ?????????????????????????????????????????????????? | | ?????????????????????????????????????????????????? | | ?????????????????????????????????????????????????? | | ?????????????????????????????????????????????????? | | ?????????????????????????????????????????????????? | | ?????????????????????????????????????????????????? | | ?????????????????????????????????????????????????? | | ?????????????????????????????????????????????????? | | ?????????????????????????????????????????????????? | | ?????????????????????????????????????????????????? | | ?????????????????????????????????????????????????? | | ?????????????????????????????????????????????????? | | ?????????????????????????????????????????????????? | | ?????????????????????????????????????????????????? | +----------------------------------------------------+ Best States ------------- Heat Dissipation 1162 Energy Generation 126 Energy Capacity 1050 Matter Stores 2350 Matter Capacity 2350 Sight Range 69 Robot Scan Range 84 Terrain Scan Range 24 Terrain Scan Density 2010 ECM Strength 3 Jamming Range 12 Cloak Strength 6 Power Amplification 30 Additional Mass Support 16 Corruption Block 8 Armor Coverage 2075 Resistance: KI 30 Resistance: TH 50 Resistance: EX 20 Resistance: EM 25 Weapon Shielding 90 Weapon Cycling 30 Phase Shifting 15 Evasion (%) 79 Targeting Accuracy 6 Target Analysis 9 Core Analysis 8 Armor Integrity Analysis 50 Recoil Reduction 99 Particle Charging 25 Kinecelleration 66 Offensive Hacking 100 Defensive Hacking 100 Trap Extractor Capacity 12 Item Schematics ----------------- Enh. Hardcell Cannon | -2/Research | Hacked Exp. Gyrokinetic Inverter | -2/Quarantine | Hacked Enh. Nova Cannon | -2/Quarantine | Hacked Enh. Quantum Rifle | -2/Quarantine | Hacked Neutron Missile Launcher | -2/Quarantine | Archive Cld. Q-thruster | -2/Quarantine | Archive Thunder Hammer | -2/Quarantine | Archive Stealth Drone Bay | -2/Quarantine | Archive Imp. Quantum Reactor | -2/Quarantine | Archive Centrium Leg | -2/Protoforge | Hacked Hvy. Shield Leg | -2/Protoforge | Hacked Quantum Reactor | -2/Protoforge | Hacked Imp. Q-thruster | -2/Protoforge | Hacked Adv. Heavy Siege Treads | -2/Protoforge | Hacked Exp. Actuator Array | -2/Protoforge | Archive Exp. Hacking Suite | -2/Protoforge | Archive Cld. Linear Gravjet | -2/Protoforge | Archive Vibroblade | -2/Protoforge | Archive Hvy. Hardcell Cannon | -2/Protoforge | Archive Exp. EM Disruption Field | -2/Protoforge | Archive Graviton Cannon | -2/Protoforge | Archive Hvy. Gatling Laser | -2/Protoforge | Archive Prc. Matter Filter | -2/Protoforge | Archive Exp. Focal Shield | -2/Protoforge | Archive Lgt. Antimatter Cannon | -2/Protoforge | Archive Enh. Gamma Bomb Array | -2/Protoforge | Archive Lrn. Phase Cannon | -2/Protoforge | Archive Enh. Multireflex Exoskeleton | -2/Protoforge | Archive Adv. Plasma Rifle | -2/Protoforge | Archive Coolant Network | -2/Protoforge | Archive Exp. Biometal Leg | -1/Command | Hacked Robot Schematics ------------------ K-01 Serf | -2/Quarantine | Hacked G-73 Enforcer | -2/Quarantine | Hacked B-74 Champion | -2/Quarantine | Hacked S-43 Plague | -2/Protoforge | Hacked T-07 Excavator | -2/Protoforge | Hacked E-15 Imp | -2/Protoforge | Archive R-10 Processor | -1/Command | Hacked Fabricated ------------ Imp. Heavy Armor Plating | x1 | -6/Factory Imp. Heavy Armor Plating | x1 | -6/Factory Imp. Heavy Armor Plating | x1 | -6/Factory Linear Accelerator | x2 | -5/Factory Linear Accelerator | x2 | -5/Factory Imp. Heavy Armor Plating | x1 | -4/Factory Imp. Heavy Armor Plating | x1 | -4/Factory Imp. Heavy Armor Plating | x1 | -3/Armory Repaired ---------- Nothing Alien Tech Used ----------------- Integrated Dissipator Transdimensional Reconstructor LC Capacitor Core Reset Matrix Integrated Reactor Core Regenerator Core Cannon Core Stripper Sigix Broadsword Concept Nanofilaments [Conductive] Integrated Mediator High-powered Transdimensional Reconstructor Achievements -------------- Alien Roots Anyone Home? Behind The Curtain Can't Catch Me Corridor Of Doom Dangerous Findings Death Machine Denied? Dodgeball, But With Guns Executioner False Reunion Hard Hitter Just Browsing Max Potential Meet Your Maker Nope Ooh, Shiny! Origins Payload Armed Production Line Pyromaniac Quick And Dirty Subspace Traveler Sunderer The Bigger They Are The Science Guy Torch Turtlemind Ultimate Loadout Use The Force Victory By Combat void main() Challenges ------------ None RPGLIKE | -11 -10 -10 -8 -8 -6 -6 -6 -6 -6 -6 -5 -5 -5 -5 -5 -5 -4 -4 -4 -4 -3 -3 -3 -3 -2 -2 -2 -1 -1 -1 --------- Run | Yrd Mat Sub Rec Scr Fac Was Fac Low Low Dat Pro Fac Ext Cet Arc Hub Fac Upp Upp Zhi Pro Res Arm Lab Res Qua Frg Acc Com Ac0 Levels Raised 38 | . . 1 1 . 4 . 4 2 1 . 2 4 2 . . 2 4 . . . 1 . 1 1 1 1 3 1 1 1 XP Earned 60580 | 3000 . 2000 1300 900 5292 200 6288 2450 1100 650 2400 6713 2556 453 550 2374 5344 366 124 73 927 1255 1376 853 1772 1364 4474 1311 1712 1403 XP Spent 26868080 | 1126400 . . . . . . . . . . . . . . . 410880 . . . . . . 25300800 9000 . . 21000 . . . Upgrades 1084 | 584 . . . . . . . . . . . . . . . 192 . . . . . . 288 8 . . 12 . . . Utility Slot 11 | 11 . . . . . . . . . . . . . . . . . . . . . . . . . . . . . . Weapon Slot 11 | 11 . . . . . . . . . . . . . . . . . . . . . . . . . . . . . . Core Integrity 308 | 116 . . . . . . . . . . . . . . . 192 . . . . . . . . . . . . . . Heat Dissipation 181 | 181 . . . . . . . . . . . . . . . . . . . . . . . . . . . . . . Energy Generation 15 | 15 . . . . . . . . . . . . . . . . . . . . . . . . . . . . . . Energy Storage 14 | 14 . . . . . . . . . . . . . . . . . . . . . . . . . . . . . . Matter Storage 26 | 26 . . . . . . . . . . . . . . . . . . . . . . . . . . . . . . Mass Support 320 | 32 . . . . . . . . . . . . . . . . . . . . . . 288 . . . . . . . Inventory Capacity 8 | . . . . . . . . . . . . . . . . . . . . . . . . 8 . . . . . . Sight Range 48 | 48 . . . . . . . . . . . . . . . . . . . . . . . . . . . . . . Sensor Range 32 | 32 . . . . . . . . . . . . . . . . . . . . . . . . . . . . . . Terrain Scan Density 20 | 20 . . . . . . . . . . . . . . . . . . . . . . . . . . . . . . Ranged Accuracy 20 | 8 . . . . . . . . . . . . . . . . . . . . . . . . . . 12 . . . Melee Accuracy 6 | 6 . . . . . . . . . . . . . . . . . . . . . . . . . . . . . . Hack Attack % 20 | 20 . . . . . . . . . . . . . . . . . . . . . . . . . . . . . . Hack Defense % 20 | 20 . . . . . . . . . . . . . . . . . . . . . . . . . . . . . . KI Resistance % 4 | 4 . . . . . . . . . . . . . . . . . . . . . . . . . . . . . . TH Resistance % 4 | 4 . . . . . . . . . . . . . . . . . . . . . . . . . . . . . . EX Resistance % 4 | 4 . . . . . . . . . . . . . . . . . . . . . . . . . . . . . . KI Damage % 4 | 4 . . . . . . . . . . . . . . . . . . . . . . . . . . . . . . TH Damage % 4 | 4 . . . . . . . . . . . . . . . . . . . . . . . . . . . . . . EX Damage % 4 | 4 . . . . . . . . . . . . . . . . . . . . . . . . . . . . . . Protomatter Created 15223 | . . 339 89 . 83 245 302 317 111 40 135 206 275 51 29 551 3065 428 167 . 309 444 999 . 777 331 4733 213 294 690 Integrity Restored 19291 | . . 772 265 . 126 331 593 611 247 99 231 250 666 101 . 664 3330 879 339 . 762 1104 1494 . 763 534 4152 . 240 738 Core 17792 | . . 566 219 . 126 16 571 530 152 99 231 250 366 76 . 527 3330 879 339 . 762 1104 1494 . 491 534 4152 . 240 738 Parts 1499 | . . 206 46 . . 315 22 81 95 . . . 300 25 . 137 . . . . . . . . 272 . . . . . Protomatter Decayed 4540 | . . 158 . . 24 129 114 57 4 . 58 83 124 . 21 165 374 20 . . 11 56 218 . 466 34 1149 221 699 355 Game ------ Seed CouplerAlertMachine Manual? 0 Play Time 12:26:20 Cumulative 34.6 hours Start 2025.05.23 @ 20:35:37 End 2025.05.24 @ 18:06:53 Sessions 5 Manual Loads 0 Difficulty Rogue Special Mode Winter2019/RPGLIKE Game No. 8 Rogue 8 Adventurer 0 Explorer 0 Win Type 3 Total 1 Types 0/0/0/1/0/0/0/0/0/0 Lore% 36 Gallery% 28 Achievement% 46 Wizard Run 0 Options --------- Layout 0 ASCII 0 Keyboard 0 Movement Mouse Keybinds 0 Fullscreen 2 Font 14/SmallcapsGlow Map View 72x54 Zoom Use 85% Tactical HUD 1 Map Filters NONE Filters NONE Steam 0 RUN: 2c64bb1a-d643-4f4f-882f-9c349f4be6a0